Workbook

Sheet INGRESO DE DATOS
O2: 24 years | P2: FALSE
O4: Descuento 24 años (por edad)
O5: age | P5: Discount (%) | Q5: Parameter | S5: Type | T5: Nuevo Negocio | V5: Región | W5: Argentina
O6: 24 | P6: 35 | Q6: =1-P6/100 -> 0.65 | T6: Renovación | W6: Belize
O7: 25 | P7: 30 | Q7: =1-P7/100 -> 0.7 | W7: El Caribe
O8: 26 | P8: 25 | Q8: 0.75 | W8: Chile
O9: 27 | P9: 20 | Q9: 0.8 | W9: Colombia
O10: 28 | P10: 15 | Q10: 0.85 | W10: Costa Rica
O11: 29 | P11: 6 | Q11: 0.94 | W11: El Salvador
O12: All ages | P12: 0 | Q12: 1 | W12: Guyana
S13: Type selected | T13: 2 | W13: Haití
W14: Honduras
W15: Nicaragua
W16: Paraguay
W17: Perú
W18: Surinam
O19: Descuento de 24 años: | P19: =IF(P2,_xlfn.SWITCH(C40,O6,Q6,O7,Q7,O8,Q8,O9,Q9,O10,Q10,O11,Q11,Q12),Q12) -> 1 | W19: Uruguay
W20: Venezuela
V21: Selección | W21: 8
V22: Región | W22: =IF(W21=1,"2",IF(W21=2,3,IF(W21=3,4,IF(W21=4,5,IF(W21=4,5,IF(W21=5,6,IF(W21=6,8,IF(W21=7,9,IF(W21=8,"Bolivia"))))))))) -> Bolivia
O24: Descuento por variante de coaseguro | P24: N/A
O30: Descuento si es nuevo negocio (ENTRADA MANUAL)
O32: New business discount
O33: Critical | P33: Diamond | Q33: Complete | R33: Advantage | S33: Secure | T33: Essential
O34: 0 | P34: 0 | Q34: 0 | R34: 0 | S34: 0 | T34: 0
A36: Nombre del Asegurado principal: | C36: John Doe
O37: Descuento combinado 24 años + Nuevo Negocio o Roneovaciones
A38: Número de adultos en la póliza: | C38: 2 | E38: Número de hijos en la póliza: | G38: 1
A40: Edad del titular: | C40: 24 | E40: Edad de cónyuge: | G40: 55 | O40: New business discount
O41: Critical | P41: Diamond | Q41: Complete | R41: Advantage | S41: Secure | T41: Essential
O42: =1*$P$19 -> 1 | P42: =IF($T$13=1,IF($W$22="PERU2020", (1-O51)*$P$19,(1-P34)*$P$19),1*$P$19) -> 1 | Q42: =IF($T$13=1,IF($W$22="PERU2020", (1-O54)*$P$19,(1-Q34)*$P$19),1*$P$19) -> 1 | R42: =IF($T$13=1,IF($W$22="PERU2020", (1-O57)*$P$19,(1-R34)*$P$19),1*$P$19) -> 1 | S42: =IF($T$13=1,IF($W$22="PERU2020", (1-O60)*$P$19,(1-S34)*$P$19),1*$P$19) -> 1 | T42: =IF($T$13=1,IF($W$22="PERU2020", (1-O63)*$P$19,(1-T34)*$P$19),1*$P$19) -> 1
A44: Nombre de la Agencia : | C44: Agencia
A47: Tarifas en US$ | Validas: 1 de enero de 2024
O48: DISCOUNT PERU 2020
O50: EXCLUSIVE CARE
O51: 0.51
O53: PRIVILEGE CARE
O54: 0.51
O56: ADVANTAGE CARE
O57: 0.47
O59: SECURE CARE
O60: 0.54
O62: ESSENTIAL CARE
O63: 0.54

Sheet BUPA ALPHA
C1: FALSE | D1: FALSE | J1: RESUMEN DE BENEFICIOS | W1: RESUMEN DE BENEFICIOS
A5: Cotización de Seguro Médico Internacional Bupa Alpha Tarifas en US$ | Validas: 1 de enero de 2024 | F5: País
F7: =IF('INGRESO DE DATOS'!$W$21=1,"Argentina",IF('INGRESO DE DATOS'!$W$21=2,"Belize",IF('INGRESO DE DATOS'!$W$21=3,"Caribe",IF('INGRESO DE DATOS'!$W$21=4,"Chile",IF('INGRESO DE DATOS'!$W$21=5,"Colombia",IF('INGRESO DE DATOS'!$W$21=6,"Costa Rica",IF('INGRESO DE DATOS'!$W$21=7,"El Salvador",IF('INGRESO DE DATOS'!$W$21=8,"Guyana",IF('INGRESO DE DATOS'!$W$21=9,"Haití",IF('INGRESO DE DATOS'!$W$21=10,"Honduras",IF('INGRESO DE DATOS'!$W$21=11,"Nicaragua",IF('INGRESO DE DATOS'!$W$21=12,"Paraguay",IF('INGRESO DE DATOS'!$W$21=13,"Perú",IF('INGRESO DE DATOS'!$W$21=14,"Surinam",IF('INGRESO DE DATOS'!$W$21=15,"Uruguay",IF('INGRESO DE DATOS'!$W$21=16,"Venezuela")))))))))))))))) -> Guyana
A13: Nombre del asegurado principal | B13: =+'INGRESO DE DATOS'!$C$36 -> John Doe
A15: Broker/Agente | B15: =+'INGRESO DE DATOS'!$C$44 -> Agencia
A17: Número de Adultos en la Póliza | B17: =+'INGRESO DE DATOS'!$C$38 -> 2 | D17: Dependientes (menores de 24 años) | G17: =+'INGRESO DE DATOS'!$G$38 -> 1
D18: =IF('INGRESO DE DATOS'!$P$2=TRUE, "Cotización para dependiente de 24 años","") -> 
A19: Edad del Titular | B19: =+'INGRESO DE DATOS'!$C$40 -> 24 | D19: Edad del Cónyuge | G19: =+'INGRESO DE DATOS'!$G$40 -> 55
D21: Fecha de Cotización: | F21: =NOW() -> 2023-12-27T15:50:53.570
A25: DEDUCIBLES | B25: PLAN 1 | C25: PLAN 2 | D25: PLAN 3 | E25: PLAN 4 | F25: PLAN 5 | G25: PLAN 6 | H25: PLAN 7
A26: Dentro o fuera del pais de residencia | B26: n/a | C26: 1000 | D26: 2000 | E26: 5000 | F26: 10000 | G26: 20000 | H26: 10000
A27: Fuera del pais de residencia | B27: n/a | C27: 2000 | D27: 3000 | E27: 5000 | F27: 10000 | G27: 20000
A30: TARIFAS ANUALES
A31: Prima de Titular | B31: n/a | C31: =VLOOKUP($B$19,Tablas!$A$440:$I$502,4,TRUE) -> 5206 | D31: =VLOOKUP($B$19,Tablas!$A$440:$I$502,5,TRUE) -> 4133 | E31: =VLOOKUP($B$19,Tablas!$A$440:$I$502,6,TRUE) -> 3152 | F31: =VLOOKUP($B$19,Tablas!$A$440:$I$502,7,TRUE) -> 2732 | G31: =VLOOKUP($B$19,Tablas!$A$440:$I$502,8,TRUE) -> 2076 | H31: =VLOOKUP($B$19,Tablas!$A$440:$I$463,9,TRUE) -> 0
A32: Prima de Cónyuge | B32: n/a | C32: =IF($B$17=1,0,(VLOOKUP($G$19,Tablas!$A$440:$I$502,4,TRUE))) -> 11839 | D32: =IF($B$17=1,0,(VLOOKUP($G$19,Tablas!$A$440:$I$502,5,TRUE))) -> 9397 | E32: =IF($B$17=1,0,(VLOOKUP($G$19,Tablas!$A$440:$I$502,6,TRUE))) -> 6772 | F32: =IF($B$17=1,0,(VLOOKUP($G$19,Tablas!$A$440:$I$502,7,TRUE))) -> 5913 | G32: =IF($B$17=1,0,(VLOOKUP($G$19,Tablas!$A$440:$I$502,8,TRUE))) -> 4914 | H32: =IF($B$17=1,0,(VLOOKUP($G$19,Tablas!$A$440:$I$463,9,TRUE))) -> 0
A33: Primas Hijos | B33: n/a | C33: =IF($G$17=0,0,(VLOOKUP($G$17,Tablas!$A$503:$I$505,4,TRUE))) -> 1971 | D33: =IF($G$17=0,0,(VLOOKUP($G$17,Tablas!$A$503:$I$505,4,TRUE))) -> 1971 | E33: =IF($G$17=0,0,(VLOOKUP($G$17,Tablas!$A$503:$I$505,4,TRUE))) -> 1971 | F33: =IF($G$17=0,0,(VLOOKUP($G$17,Tablas!$A$503:$I$505,4,TRUE))) -> 1971 | G33: =IF($G$17=0,0,(VLOOKUP($G$17,Tablas!$A$503:$I$505,4,TRUE))) -> 1971 | H33: =IF($G$17=0,0,(VLOOKUP($G$17,Tablas!$A$464:$I$466,9,TRUE))) -> 
A34: Rider: Complicaciones de Maternidad | B34: n/a | C34: =+IF($C$1=FALSE,0,Tablas!D506) -> 0 | D34: =+IF($C$1=FALSE,0,Tablas!E506) -> 0 | E34: =+IF($C$1=FALSE,0,Tablas!F506) -> 0 | F34: =+IF($C$1=FALSE,0,Tablas!G506) -> 0 | G34: =+IF($C$1=FALSE,0,Tablas!H506) -> 0
A35: Rider: Trasplante Organos | B35: n/a | C35: =+IF($D$1=FALSE,0,Tablas!D507) -> 0 | D35: =+IF($D$1=FALSE,0,Tablas!E507) -> 0 | E35: =+IF($D$1=FALSE,0,Tablas!F507) -> 0 | F35: =+IF($D$1=FALSE,0,Tablas!G507) -> 0 | G35: =+IF($D$1=FALSE,0,Tablas!H507) -> 0
A36: TOTAL PRIMA NETA | B36: n/a | C36: =SUM(C31:C35) -> 19016 | D36: 15501 | E36: 11895 | F36: 10616 | G36: 8961
A37: Costo Administrativo Annual | B37: n/a | C37: 75 | D37: 75 | E37: 75 | F37: 75 | G37: 75 | H37: 75
A38: GRAN TOTAL : | B38: n/a | C38: =SUM(C36:C37) -> 19091 | D38: 15576 | E38: 11970 | F38: 10691 | G38: 9036 | H38: 75
A41: TARIFAS SEMESTRALES
A42: Prima de Titular | B42: n/a | C42: =VLOOKUP($B$19,Tablas!$A$513:$I$575,4,TRUE) -> 2759.18 | D42: =VLOOKUP($B$19,Tablas!$A$513:$I$575,5,TRUE) -> 2190.49 | E42: =VLOOKUP($B$19,Tablas!$A$513:$I$575,6,TRUE) -> 1670.56 | F42: =VLOOKUP($B$19,Tablas!$A$513:$I$575,7,TRUE) -> 1447.96 | G42: =VLOOKUP($B$19,Tablas!$A$513:$I$575,8,TRUE) -> 1100.28 | H42: =VLOOKUP($B$19,Tablas!$A$513:$I$536,9,TRUE) -> 0
A43: Prima de Cónyuge | B43: n/a | C43: =IF($B$17=1,0,(VLOOKUP($G$19,Tablas!$A$513:$I$575,4,TRUE))) -> 6274.67 | D43: =IF($B$17=1,0,(VLOOKUP($G$19,Tablas!$A$513:$I$575,5,TRUE))) -> 4980.41 | E43: =IF($B$17=1,0,(VLOOKUP($G$19,Tablas!$A$513:$I$575,6,TRUE))) -> 3589.16 | F43: =IF($B$17=1,0,(VLOOKUP($G$19,Tablas!$A$513:$I$575,7,TRUE))) -> 3133.89 | G43: =IF($B$17=1,0,(VLOOKUP($G$19,Tablas!$A$513:$I$575,8,TRUE))) -> 2604.42 | H43: =IF($B$17=1,0,(VLOOKUP($G$19,Tablas!$A$513:$I$536,9,TRUE))) -> 0
A44: Primas Hijos | B44: n/a | C44: =IF($G$17=0,0,(VLOOKUP($G$17,Tablas!$A$576:$I$578,4,TRUE))) -> 1044.63 | D44: =IF($G$17=0,0,(VLOOKUP($G$17,Tablas!$A$576:$I$578,4,TRUE))) -> 1044.63 | E44: =IF($G$17=0,0,(VLOOKUP($G$17,Tablas!$A$576:$I$578,4,TRUE))) -> 1044.63 | F44: =IF($G$17=0,0,(VLOOKUP($G$17,Tablas!$A$576:$I$578,4,TRUE))) -> 1044.63 | G44: =IF($G$17=0,0,(VLOOKUP($G$17,Tablas!$A$576:$I$578,4,TRUE))) -> 1044.63 | H44: =IF($G$17=0,0,(VLOOKUP($G$17,Tablas!$A$537:$I$539,9,TRUE))) -> 
A45: Rider: Complicaciones de Maternidad | B45: n/a | C45: =+IF($C$1=FALSE,0,Tablas!D579) -> 0 | D45: =+IF($C$1=FALSE,0,Tablas!E579) -> 0 | E45: =+IF($C$1=FALSE,0,Tablas!F579) -> 0 | F45: =+IF($C$1=FALSE,0,Tablas!G579) -> 0 | G45: =+IF($C$1=FALSE,0,Tablas!H579) -> 0
A46: Rider: Trasplante Organos | B46: n/a | C46: =+IF($D$1=FALSE,0,Tablas!D580) -> 0 | D46: =+IF($D$1=FALSE,0,Tablas!E580) -> 0 | E46: =+IF($D$1=FALSE,0,Tablas!F580) -> 0 | F46: =+IF($D$1=FALSE,0,Tablas!G580) -> 0 | G46: =+IF($D$1=FALSE,0,Tablas!H580) -> 0
A47: TOTAL PRIMA NETA | B47: n/a | C47: =SUM(C42:C46) -> 10078.48 | D47: 8215.53 | E47: 6304.35 | F47: 5626.48 | G47: 4749.33
A48: Costo Administrativo Anual | B48: n/a | C48: 75 | D48: 75 | E48: 75 | F48: 75 | G48: 75 | H48: 75
A49: GRAN TOTAL (1ra Cuota) | B49: n/a | C49: =SUM(C47:C48) -> 10153.48 | D49: 8290.53 | E49: 6379.35 | F49: 5701.48 | G49: 4824.33
A50: GRAN TOTAL (2da Cuota) | B50: n/a | C50: =C47 -> 10078.48 | D50: =D47 -> 8215.53 | E50: 6304.35 | F50: 5626.48 | G50: 4749.33
A52: Este presupuesto solamente tiene carácter informativo y en ningún momento expresa compromiso legal para suministrarle cobertura de seguro. La emisión de una póliza de seguro Bupa está sujeta a todas las evaluaciones de riesgo por parte de Bupa y a la recepción de todos los pagos de prima requeridos.

Sheet Tablas (hidden)
K1: Critical | L1: Diamond | M1: Complete | N1: Advantage | O1: Secure | P1: Essential
B2: REGIÓN | C2: ='INGRESO DE DATOS'!W22 -> Bolivia | E2: FACTOR SEMESTRAL : | G2: 0.53 | I2: TOTAL DISCOUNT | K2: ='INGRESO DE DATOS'!O42 -> 1 | L2: ='INGRESO DE DATOS'!P42 -> 1 | M2: ='INGRESO DE DATOS'!Q42 -> 1 | N2: ='INGRESO DE DATOS'!R42 -> 1 | O2: ='INGRESO DE DATOS'!S42 -> 1 | P2: ='INGRESO DE DATOS'!T42 -> 1 | T2: Impuesto (14.94%) | V2: =14.94/100+1 -> 1.1494
A5: BUPA DIAMOND CARE (MUNDIAL) | K5: ORIGINAL RATES | Q5: DISCOUNTS APPLIED
A6: TARIFAS ANUALES
A7: EDAD
C8: DW1 | D8: DW2 | E8: DW3 | F8: DW4 | G8: DW5 | H8: DW6
A9: 18 | B9: 18-24 | D9: =Q9*$V$2 ->  | E9: =R9*$V$2 ->  | K9: ='Argentina 6'!#REF! ->  | L9: ='Argentina 6'!#REF! ->  | M9: ='Argentina 6'!#REF! ->  | N9: ='Argentina 6'!#REF! ->  | O9: ='Argentina 6'!#REF! ->  | Q9: =(K9-50)*$L$2+50 ->  | R9: =(L9-50)*$L$2+50 -> 
A10: 25 | B10: 25-29 | D10: =Q10*$V$2 ->  | E10: =R10*$V$2 ->  | F10: =S10*$V$2 ->  | G10: =T10*$V$2 ->  | H10: =U10*$V$2 ->  | K10: ='Argentina 6'!#REF! ->  | L10: ='Argentina 6'!#REF! ->  | M10: ='Argentina 6'!#REF! ->  | N10: ='Argentina 6'!#REF! ->  | O10: ='Argentina 6'!#REF! ->  | Q10: =(K10-50)*$L$2+50 ->  | R10: =(L10-50)*$L$2+50 ->  | S10: =(M10-50)*$L$2+50 ->  | T10: =(N10-50)*$L$2+50 ->  | U10: =(O10-50)*$L$2+50 -> 
A11: 30 | B11: 30-34 | K11: ='Argentina 6'!#REF! ->  | L11: ='Argentina 6'!#REF! ->  | M11: ='Argentina 6'!#REF! ->  | N11: ='Argentina 6'!#REF! ->  | O11: ='Argentina 6'!#REF! -> 
A12: 35 | B12: 35-39 | K12: ='Argentina 6'!#REF! ->  | L12: ='Argentina 6'!#REF! ->  | M12: ='Argentina 6'!#REF! ->  | N12: ='Argentina 6'!#REF! ->  | O12: ='Argentina 6'!#REF! -> 
A13: 40 | B13: 40-44 | K13: ='Argentina 6'!#REF! ->  | L13: ='Argentina 6'!#REF! ->  | M13: ='Argentina 6'!#REF! ->  | N13: ='Argentina 6'!#REF! ->  | O13: ='Argentina 6'!#REF! -> 
A14: 45 | B14: 45-49 | K14: ='Argentina 6'!#REF! ->  | L14: ='Argentina 6'!#REF! ->  | M14: ='Argentina 6'!#REF! ->  | N14: ='Argentina 6'!#REF! ->  | O14: ='Argentina 6'!#REF! -> 
A15: 50 | B15: 50-54 | K15: ='Argentina 6'!#REF! ->  | L15: ='Argentina 6'!#REF! ->  | M15: ='Argentina 6'!#REF! ->  | N15: ='Argentina 6'!#REF! ->  | O15: ='Argentina 6'!#REF! -> 
A16: 55 | B16: 55-59 | K16: ='Argentina 6'!#REF! ->  | L16: ='Argentina 6'!#REF! ->  | M16: ='Argentina 6'!#REF! ->  | N16: ='Argentina 6'!#REF! ->  | O16: ='Argentina 6'!#REF! -> 
A17: 60 | B17: 60 | K17: ='Argentina 6'!#REF! ->  | L17: ='Argentina 6'!#REF! ->  | M17: ='Argentina 6'!#REF! ->  | N17: ='Argentina 6'!#REF! ->  | O17: ='Argentina 6'!#REF! -> 
A18: 61 | B18: 61 | K18: ='Argentina 6'!#REF! ->  | L18: ='Argentina 6'!#REF! ->  | M18: ='Argentina 6'!#REF! ->  | N18: ='Argentina 6'!#REF! ->  | O18: ='Argentina 6'!#REF! -> 
A19: 62 | B19: 62 | K19: ='Argentina 6'!#REF! ->  | L19: ='Argentina 6'!#REF! ->  | M19: ='Argentina 6'!#REF! ->  | N19: ='Argentina 6'!#REF! ->  | O19: ='Argentina 6'!#REF! -> 
A20: 63 | B20: 63 | K20: ='Argentina 6'!#REF! ->  | L20: ='Argentina 6'!#REF! ->  | M20: ='Argentina 6'!#REF! ->  | N20: ='Argentina 6'!#REF! ->  | O20: ='Argentina 6'!#REF! -> 
A21: 64 | B21: 64 | K21: ='Argentina 6'!#REF! ->  | L21: ='Argentina 6'!#REF! ->  | M21: ='Argentina 6'!#REF! ->  | N21: ='Argentina 6'!#REF! ->  | O21: ='Argentina 6'!#REF! -> 
A22: 65 | B22: 65 | K22: ='Argentina 6'!#REF! ->  | L22: ='Argentina 6'!#REF! ->  | M22: ='Argentina 6'!#REF! ->  | N22: ='Argentina 6'!#REF! ->  | O22: ='Argentina 6'!#REF! -> 
A23: 66 | B23: 66 | K23: ='Argentina 6'!#REF! ->  | L23: ='Argentina 6'!#REF! ->  | M23: ='Argentina 6'!#REF! ->  | N23: ='Argentina 6'!#REF! ->  | O23: ='Argentina 6'!#REF! -> 
A24: 67 | B24: 67 | K24: ='Argentina 6'!#REF! ->  | L24: ='Argentina 6'!#REF! ->  | M24: ='Argentina 6'!#REF! ->  | N24: ='Argentina 6'!#REF! ->  | O24: ='Argentina 6'!#REF! -> 
A25: 68 | B25: 68 | K25: ='Argentina 6'!#REF! ->  | L25: ='Argentina 6'!#REF! ->  | M25: ='Argentina 6'!#REF! ->  | N25: ='Argentina 6'!#REF! ->  | O25: ='Argentina 6'!#REF! -> 
A26: 69 | B26: 69 | K26: ='Argentina 6'!#REF! ->  | L26: ='Argentina 6'!#REF! ->  | M26: ='Argentina 6'!#REF! ->  | N26: ='Argentina 6'!#REF! ->  | O26: ='Argentina 6'!#REF! -> 
A27: 70 | B27: 70 | K27: ='Argentina 6'!#REF! ->  | L27: ='Argentina 6'!#REF! ->  | M27: ='Argentina 6'!#REF! ->  | N27: ='Argentina 6'!#REF! ->  | O27: ='Argentina 6'!#REF! -> 
A28: 71 | B28: 71 | K28: ='Argentina 6'!#REF! ->  | L28: ='Argentina 6'!#REF! ->  | M28: ='Argentina 6'!#REF! ->  | N28: ='Argentina 6'!#REF! ->  | O28: ='Argentina 6'!#REF! -> 
A29: 72 | B29: 72 | K29: ='Argentina 6'!#REF! ->  | L29: ='Argentina 6'!#REF! ->  | M29: ='Argentina 6'!#REF! ->  | N29: ='Argentina 6'!#REF! ->  | O29: ='Argentina 6'!#REF! -> 
A30: 73 | B30: 73 | K30: ='Argentina 6'!#REF! ->  | L30: ='Argentina 6'!#REF! ->  | M30: ='Argentina 6'!#REF! ->  | N30: ='Argentina 6'!#REF! ->  | O30: ='Argentina 6'!#REF! -> 
A31: 74 | B31: 74 | K31: ='Argentina 6'!#REF! ->  | L31: ='Argentina 6'!#REF! ->  | M31: ='Argentina 6'!#REF! ->  | N31: ='Argentina 6'!#REF! ->  | O31: ='Argentina 6'!#REF! -> 
A32: 75 | B32: 75+ | K32: ='Argentina 6'!#REF! ->  | L32: ='Argentina 6'!#REF! ->  | M32: ='Argentina 6'!#REF! ->  | N32: ='Argentina 6'!#REF! ->  | O32: ='Argentina 6'!#REF! -> 
A33: 1 | B33: 1 Child | K33: ='Argentina 6'!#REF! ->  | L33: ='Argentina 6'!#REF! ->  | M33: ='Argentina 6'!#REF! ->  | N33: ='Argentina 6'!#REF! ->  | O33: ='Argentina 6'!#REF! ->  | Q33: =(K33)*$L$2 ->  | R33: =(L33)*$L$2 -> 
A34: 2 | B34: 2 Children | K34: ='Argentina 6'!#REF! ->  | L34: ='Argentina 6'!#REF! ->  | M34: ='Argentina 6'!#REF! ->  | N34: ='Argentina 6'!#REF! ->  | O34: ='Argentina 6'!#REF! ->  | Q34: =(K34)*$L$2 ->  | R34: =(L34)*$L$2 ->  | S34: =(M34)*$L$2 ->  | T34: =(N34)*$L$2 ->  | U34: =(O34)*$L$2 -> 
A35: 3 | B35: 3+ Children | D35: =Q35*$V$2 ->  | K35: ='Argentina 6'!#REF! ->  | L35: ='Argentina 6'!#REF! ->  | M35: ='Argentina 6'!#REF! ->  | N35: ='Argentina 6'!#REF! ->  | O35: ='Argentina 6'!#REF! -> 
A36: 1 | B36: Rider Comp. Maternidad | D36: =K36*$V$2 -> 0 | E36: =L36*$V$2 -> 0 | F36: 258.615 | G36: 258.615 | H36: 258.615 | K36: 0 | L36: 0 | M36: 225 | N36: 225 | O36: 225
A37: 1 | B37: Transplante de organos | D37: =K37*$V$2 -> 0 | E37: =L37*$V$2 -> 0 | F37: =M37*$V$2 -> 0 | G37: =N37*$V$2 -> 0 | H37: =O37*$V$2 -> 0 | K37: 0 | L37: 0 | M37: 0 | N37: 0 | O37: 0
D38: 0 | E38: 0 | F38: 0 | G38: 0 | H38: 0
A41: TARIFAS SEMESTRALES
A42: EDAD
D43: DW2 | E43: DW3 | F43: DW4 | G43: DW5 | H43: DW6
A44: 18 | B44: 18-24 | D44: =$G$2*D9 -> 
A45: 25 | B45: 25-29
A46: 30 | B46: 30-34
A47: 35 | B47: 35-39
A48: 40 | B48: 40-44
A49: 45 | B49: 45-49
A50: 50 | B50: 50-54
A51: 55 | B51: 55-59
A52: 60 | B52: 60
A53: 61 | B53: 61
A54: 62 | B54: 62 | D54: =$G$2*D19 -> 
A55: 63 | B55: 63
A56: 64 | B56: 64
A57: 65 | B57: 65
A58: 66 | B58: 66
A59: 67 | B59: 67
A60: 68 | B60: 68
A61: 69 | B61: 69
A62: 70 | B62: 70
A63: 71 | B63: 71
A64: 72 | B64: 72 | D64: =$G$2*D29 -> 
A65: 73 | B65: 73
A66: 74 | B66: 74
A67: 75 | B67: 75+
A68: 1 | B68: 1 Child
A69: 2 | B69: 2 Children
A70: 3 | B70: 3+ Children
A71: 1 | B71: Rider Comp. Maternidad | D71: =+D36*$G$2 -> 0 | E71: 0 | F71: 137.06595 | G71: 137.06595 | H71: 137.06595
A72: 1 | B72: Transplante de organos | D72: 0 | E72: 0 | F72: 0 | G72: 0 | H72: 0
A78: BUPA DIAMOND CARE (LATIN AMERICA) | K78: ORIGINAL RATES | Q78: DISCOUNTS APPLIED
A79: TARIFAS ANUALES
A80: EDAD
C81: DW1 | D81: DW2 | E81: DW3 | F81: DW4 | G81: DW5 | H81: DW6
A82: 18 | B82: 18-24 | D82: =Q82*$V$2 ->  | E82: =R82*$V$2 ->  | K82: ='Argentina 6'!#REF! ->  | L82: ='Argentina 6'!#REF! ->  | M82: ='Argentina 6'!#REF! ->  | N82: ='Argentina 6'!#REF! ->  | O82: ='Argentina 6'!#REF! ->  | Q82: =(K82-50)*$L$2+50 ->  | R82: =(L82-50)*$L$2+50 ->  | S82: =(M82-50)*$L$2+50 ->  | T82: =(N82-50)*$L$2+50 ->  | U82: =(O82-50)*$L$2+50 -> 
A83: 25 | B83: 25-29 | D83: =Q83*$V$2 ->  | E83: =R83*$V$2 ->  | F83: =S83*$V$2 ->  | G83: =T83*$V$2 ->  | H83: =U83*$V$2 ->  | K83: ='Argentina 6'!#REF! ->  | L83: ='Argentina 6'!#REF! ->  | M83: ='Argentina 6'!#REF! ->  | N83: ='Argentina 6'!#REF! ->  | O83: ='Argentina 6'!#REF! ->  | Q83: =(K83-50)*$L$2+50 -> 
A84: 30 | B84: 30-34 | K84: ='Argentina 6'!#REF! ->  | L84: ='Argentina 6'!#REF! ->  | M84: ='Argentina 6'!#REF! ->  | N84: ='Argentina 6'!#REF! ->  | O84: ='Argentina 6'!#REF! -> 
A85: 35 | B85: 35-39 | K85: ='Argentina 6'!#REF! ->  | L85: ='Argentina 6'!#REF! ->  | M85: ='Argentina 6'!#REF! ->  | N85: ='Argentina 6'!#REF! ->  | O85: ='Argentina 6'!#REF! -> 
A86: 40 | B86: 40-44 | K86: ='Argentina 6'!#REF! ->  | L86: ='Argentina 6'!#REF! ->  | M86: ='Argentina 6'!#REF! ->  | N86: ='Argentina 6'!#REF! ->  | O86: ='Argentina 6'!#REF! -> 
A87: 45 | B87: 45-49 | K87: ='Argentina 6'!#REF! ->  | L87: ='Argentina 6'!#REF! ->  | M87: ='Argentina 6'!#REF! ->  | N87: ='Argentina 6'!#REF! ->  | O87: ='Argentina 6'!#REF! -> 
A88: 50 | B88: 50-54 | K88: ='Argentina 6'!#REF! ->  | L88: ='Argentina 6'!#REF! ->  | M88: ='Argentina 6'!#REF! ->  | N88: ='Argentina 6'!#REF! ->  | O88: ='Argentina 6'!#REF! -> 
A89: 55 | B89: 55-59 | K89: ='Argentina 6'!#REF! ->  | L89: ='Argentina 6'!#REF! ->  | M89: ='Argentina 6'!#REF! ->  | N89: ='Argentina 6'!#REF! ->  | O89: ='Argentina 6'!#REF! -> 
A90: 60 | B90: 60 | K90: ='Argentina 6'!#REF! ->  | L90: ='Argentina 6'!#REF! ->  | M90: ='Argentina 6'!#REF! ->  | N90: ='Argentina 6'!#REF! ->  | O90: ='Argentina 6'!#REF! -> 
A91: 61 | B91: 61 | K91: ='Argentina 6'!#REF! ->  | L91: ='Argentina 6'!#REF! ->  | M91: ='Argentina 6'!#REF! ->  | N91: ='Argentina 6'!#REF! ->  | O91: ='Argentina 6'!#REF! -> 
A92: 62 | B92: 62 | K92: ='Argentina 6'!#REF! ->  | L92: ='Argentina 6'!#REF! ->  | M92: ='Argentina 6'!#REF! ->  | N92: ='Argentina 6'!#REF! ->  | O92: ='Argentina 6'!#REF! -> 
A93: 63 | B93: 63 | K93: ='Argentina 6'!#REF! ->  | L93: ='Argentina 6'!#REF! ->  | M93: ='Argentina 6'!#REF! ->  | N93: ='Argentina 6'!#REF! ->  | O93: ='Argentina 6'!#REF! -> 
A94: 64 | B94: 64 | K94: ='Argentina 6'!#REF! ->  | L94: ='Argentina 6'!#REF! ->  | M94: ='Argentina 6'!#REF! ->  | N94: ='Argentina 6'!#REF! ->  | O94: ='Argentina 6'!#REF! -> 
A95: 65 | B95: 65 | K95: ='Argentina 6'!#REF! ->  | L95: ='Argentina 6'!#REF! ->  | M95: ='Argentina 6'!#REF! ->  | N95: ='Argentina 6'!#REF! ->  | O95: ='Argentina 6'!#REF! -> 
A96: 66 | B96: 66 | K96: ='Argentina 6'!#REF! ->  | L96: ='Argentina 6'!#REF! ->  | M96: ='Argentina 6'!#REF! ->  | N96: ='Argentina 6'!#REF! ->  | O96: ='Argentina 6'!#REF! -> 
A97: 67 | B97: 67 | K97: ='Argentina 6'!#REF! ->  | L97: ='Argentina 6'!#REF! ->  | M97: ='Argentina 6'!#REF! ->  | N97: ='Argentina 6'!#REF! ->  | O97: ='Argentina 6'!#REF! -> 
A98: 68 | B98: 68 | K98: ='Argentina 6'!#REF! ->  | L98: ='Argentina 6'!#REF! ->  | M98: ='Argentina 6'!#REF! ->  | N98: ='Argentina 6'!#REF! ->  | O98: ='Argentina 6'!#REF! -> 
A99: 69 | B99: 69 | K99: ='Argentina 6'!#REF! ->  | L99: ='Argentina 6'!#REF! ->  | M99: ='Argentina 6'!#REF! ->  | N99: ='Argentina 6'!#REF! ->  | O99: ='Argentina 6'!#REF! -> 
A100: 70 | B100: 70 | K100: ='Argentina 6'!#REF! ->  | L100: ='Argentina 6'!#REF! ->  | M100: ='Argentina 6'!#REF! ->  | N100: ='Argentina 6'!#REF! ->  | O100: ='Argentina 6'!#REF! -> 
A101: 71 | B101: 71 | K101: ='Argentina 6'!#REF! ->  | L101: ='Argentina 6'!#REF! ->  | M101: ='Argentina 6'!#REF! ->  | N101: ='Argentina 6'!#REF! ->  | O101: ='Argentina 6'!#REF! -> 
A102: 72 | B102: 72 | K102: ='Argentina 6'!#REF! ->  | L102: ='Argentina 6'!#REF! ->  | M102: ='Argentina 6'!#REF! ->  | N102: ='Argentina 6'!#REF! ->  | O102: ='Argentina 6'!#REF! -> 
A103: 73 | B103: 73 | K103: ='Argentina 6'!#REF! ->  | L103: ='Argentina 6'!#REF! ->  | M103: ='Argentina 6'!#REF! ->  | N103: ='Argentina 6'!#REF! ->  | O103: ='Argentina 6'!#REF! -> 
A104: 74 | B104: 74 | K104: ='Argentina 6'!#REF! ->  | L104: ='Argentina 6'!#REF! ->  | M104: ='Argentina 6'!#REF! ->  | N104: ='Argentina 6'!#REF! ->  | O104: ='Argentina 6'!#REF! -> 
A105: 75 | B105: 75+ | K105: ='Argentina 6'!#REF! ->  | L105: ='Argentina 6'!#REF! ->  | M105: ='Argentina 6'!#REF! ->  | N105: ='Argentina 6'!#REF! ->  | O105: ='Argentina 6'!#REF! -> 
A106: 1 | B106: 1 Child | K106: ='Argentina 6'!#REF! ->  | L106: ='Argentina 6'!#REF! ->  | M106: ='Argentina 6'!#REF! ->  | N106: ='Argentina 6'!#REF! ->  | O106: ='Argentina 6'!#REF! ->  | Q106: =(K106)*$L$2 ->  | R106: =(L106)*$L$2 ->  | S106: =(M106)*$L$2 ->  | T106: =(N106)*$L$2 ->  | U106: =(O106)*$L$2 -> 
A107: 2 | B107: 2 Children | K107: ='Argentina 6'!#REF! ->  | L107: ='Argentina 6'!#REF! ->  | M107: ='Argentina 6'!#REF! ->  | N107: ='Argentina 6'!#REF! ->  | O107: ='Argentina 6'!#REF! ->  | Q107: =(K107)*$L$2 -> 
A108: 3 | B108: 3+ Children | K108: ='Argentina 6'!#REF! ->  | L108: ='Argentina 6'!#REF! ->  | M108: ='Argentina 6'!#REF! ->  | N108: ='Argentina 6'!#REF! ->  | O108: ='Argentina 6'!#REF! -> 
A109: 1 | B109: Rider Comp. Maternidad | D109: =K109*$V$2 -> 0 | E109: =L109*$V$2 -> 0 | F109: 258.615 | G109: 258.615 | H109: 258.615 | K109: 0 | L109: 0 | M109: 225 | N109: 225 | O109: 225
A110: 1 | B110: Transplante de organos | D110: =K110*$V$2 -> 0 | E110: =L110*$V$2 -> 0 | F110: =M110*$V$2 -> 0 | G110: =N110*$V$2 -> 0 | H110: =O110*$V$2 -> 0 | K110: 0 | L110: 0 | M110: 0 | N110: 0 | O110: 0
D111: 0 | E111: 0 | F111: 0 | G111: 0 | H111: 0
A114: TARIFAS SEMESTRALES
A115: EDAD
D116: DW2 | E116: DW3 | F116: DW4 | G116: DW5 | H116: DW6
A117: 18 | B117: 18-24 | D117: =$G$2*D82 -> 
A118: 25 | B118: 25-29 | D118: =$G$2*D83 -> 
A119: 30 | B119: 30-34 | D119: =$G$2*D84 -> 
A120: 35 | B120: 35-39 | D120: =$G$2*D85 -> 
A121: 40 | B121: 40-44 | D121: =$G$2*D86 -> 
A122: 45 | B122: 45-49 | D122: =$G$2*D87 -> 
A123: 50 | B123: 50-54 | D123: =$G$2*D88 -> 
A124: 55 | B124: 55-59 | D124: =$G$2*D89 -> 
A125: 60 | B125: 60 | D125: =$G$2*D90 -> 
A126: 61 | B126: 61 | D126: =$G$2*D91 -> 
A127: 62 | B127: 62 | D127: =$G$2*D92 -> 
A128: 63 | B128: 63 | D128: =$G$2*D93 -> 
A129: 64 | B129: 64 | D129: =$G$2*D94 -> 
A130: 65 | B130: 65 | D130: =$G$2*D95 -> 
A131: 66 | B131: 66 | D131: =$G$2*D96 -> 
A132: 67 | B132: 67 | D132: =$G$2*D97 -> 
A133: 68 | B133: 68 | D133: =$G$2*D98 -> 
A134: 69 | B134: 69 | D134: =$G$2*D99 -> 
A135: 70 | B135: 70 | D135: =$G$2*D100 -> 
A136: 71 | B136: 71 | D136: =$G$2*D101 -> 
A137: 72 | B137: 72 | D137: =$G$2*D102 -> 
A138: 73 | B138: 73 | D138: =$G$2*D103 -> 
A139: 74 | B139: 74 | D139: =$G$2*D104 -> 
A140: 75 | B140: 75+ | D140: =$G$2*D105 -> 
A141: 1 | B141: 1 Child | D141: =$G$2*D106 -> 
A142: 2 | B142: 2 Children | D142: =$G$2*D107 -> 
A143: 3 | B143: 3+ Children | D143: =$G$2*D108 -> 
A144: 1 | B144: Rider Comp. Maternidad | D144: =+D109*$G$2 -> 0 | E144: 0 | F144: 137.06595 | G144: 137.06595 | H144: 137.06595
A145: 1 | B145: Transplante de organos | D145: =+D110*$G$2 -> 0 | E145: 0 | F145: 0 | G145: 0 | H145: 0
A151: DIAMOND (LATINAMERICA ONLY)
A152: TARIFAS ANUALES
A153: EDAD
C154: DL1 | D154: DL2 | E154: DL3 | F154: DL4 | G154: DL5 | H154: DL6
A155: 18 | B155: - 24
A156: 25 | B156: - 29
A157: 30 | B157: - 34
A158: 35 | B158: - 39
A159: 40 | B159: - 44
A160: 45 | B160: - 49
A161: 50 | B161: - 54
A162: 55 | B162: - 59
A163: 60
A164: 61
A165: 62
A166: 63
A167: 64
A168: 65
A169: 66
A170: 67
A171: 68
A172: 69
A173: 70
A174: 71
A175: 72
A176: 73
A177: 74
A178: 75 | B178: o más
A179: 1 | B179: Hijo
A180: 2 | B180: Hijos
A181: 3 | B181: Hijos o más
A182: 1 | B182: Rider Comp. Maternidad
A183: 1 | B183: Transplante de organos | C183: 0 | D183: 0 | E183: 0 | F183: 0 | G183: 0 | H183: 0
A185: TARIFAS SEMESTRALES
A186: EDAD
C187: DL1 | D187: DL2 | E187: DL3 | F187: DL4 | G187: DL5 | H187: DL6
A188: 18 | B188: - 24 | C188: =+C155*$G$2 -> 0 | D188: 0 | E188: 0 | F188: 0 | G188: 0 | H188: 0
A189: 25 | B189: - 29 | C189: 0 | D189: 0 | E189: 0 | F189: 0 | G189: 0 | H189: 0
A190: 30 | B190: - 34 | C190: 0 | D190: 0 | E190: 0 | F190: 0 | G190: 0 | H190: 0
A191: 35 | B191: - 39 | C191: 0 | D191: 0 | E191: 0 | F191: 0 | G191: 0 | H191: 0
A192: 40 | B192: - 44 | C192: 0 | D192: 0 | E192: 0 | F192: 0 | G192: 0 | H192: 0
A193: 45 | B193: - 49 | C193: 0 | D193: 0 | E193: 0 | F193: 0 | G193: 0 | H193: 0
A194: 50 | B194: - 54 | C194: 0 | D194: 0 | E194: 0 | F194: 0 | G194: 0 | H194: 0
A195: 55 | B195: - 59 | C195: 0 | D195: 0 | E195: 0 | F195: 0 | G195: 0 | H195: 0
A196: 60 | C196: 0 | D196: 0 | E196: 0 | F196: 0 | G196: 0 | H196: 0
A197: 61 | C197: 0 | D197: 0 | E197: 0 | F197: 0 | G197: 0 | H197: 0
A198: 62 | C198: =+C165*$G$2 -> 0 | D198: 0 | E198: 0 | F198: 0 | G198: 0 | H198: 0
A199: 63 | C199: 0 | D199: 0 | E199: 0 | F199: 0 | G199: 0 | H199: 0
A200: 64 | C200: 0 | D200: 0 | E200: 0 | F200: 0 | G200: 0 | H200: 0
A201: 65 | C201: 0 | D201: 0 | E201: 0 | F201: 0 | G201: 0 | H201: 0
A202: 66 | C202: 0 | D202: 0 | E202: 0 | F202: 0 | G202: 0 | H202: 0
A203: 67 | C203: 0 | D203: 0 | E203: 0 | F203: 0 | G203: 0 | H203: 0
A204: 68 | C204: 0 | D204: 0 | E204: 0 | F204: 0 | G204: 0 | H204: 0
A205: 69 | C205: 0 | D205: 0 | E205: 0 | F205: 0 | G205: 0 | H205: 0
A206: 70 | C206: 0 | D206: 0 | E206: 0 | F206: 0 | G206: 0 | H206: 0
A207: 71 | C207: 0 | D207: 0 | E207: 0 | F207: 0 | G207: 0 | H207: 0
A208: 72 | C208: =+C175*$G$2 -> 0 | D208: 0 | E208: 0 | F208: 0 | G208: 0 | H208: 0
A209: 73 | C209: 0 | D209: 0 | E209: 0 | F209: 0 | G209: 0 | H209: 0
A210: 74 | C210: 0 | D210: 0 | E210: 0 | F210: 0 | G210: 0 | H210: 0
A211: 75 | B211: o más | C211: 0 | D211: 0 | E211: 0 | F211: 0 | G211: 0 | H211: 0
A212: 1 | B212: Hijo | C212: 0 | D212: 0 | E212: 0 | F212: 0 | G212: 0 | H212: 0
A213: 2 | B213: Hijos | C213: 0 | D213: 0 | E213: 0 | F213: 0 | G213: 0 | H213: 0
A214: 3 | B214: Hijos o más | C214: 0 | D214: 0 | E214: 0 | F214: 0 | G214: 0 | H214: 0
A215: 1 | B215: Rider Comp. Maternidad | C215: 0 | D215: 0 | E215: 0 | F215: 0 | G215: 0 | H215: 0
A216: 1 | B216: Transplante de organos | C216: 0 | D216: 0 | E216: 0 | F216: 0 | G216: 0 | H216: 0
A221: BUPA COMPLETE CARE (MUNDIAL)
... 337 more rows

Sheet Argentina 6 (hidden)
K1: D1 | L1: D2 | M1: D3 | N1: D4 | O1: D5 | P1: D6
B2: REGIÓN | C2: ='INGRESO DE DATOS'!W22 -> Bolivia | E2: FACTOR SEMESTRAL : | G2: 0.53 | I2: NEW BUSINESS DISCUOUNTS | K2: ='INGRESO DE DATOS'!O42 -> 1 | L2: ='INGRESO DE DATOS'!P42 -> 1 | M2: ='INGRESO DE DATOS'!Q42 -> 1 | N2: ='INGRESO DE DATOS'!R42 -> 1 | O2: ='INGRESO DE DATOS'!S42 -> 1 | P2: ='INGRESO DE DATOS'!T42 -> 1
A5: BUPA ALPHA
A6: TARIFAS ANUALES
A8: EDAD | C8: DW1 | D8: DW2 | E8: DW3 | F8: DW4 | G8: DW5 | H8: DW6 | I8: DW7
A9: 18 | B9: 18 | D9: 3644 | E9: 2822 | F9: 2180 | G9: 1888 | H9: 1441
A10: 19 | B10: 19 | D10: 3739 | E10: 2908 | F10: 2245 | G10: 1940 | H10: 1481
A11: 20 | B11: 20 | D11: 3838 | E11: 2994 | F11: 2308 | G11: 2001 | H11: 1519
A12: 21 | B12: 21 | D12: 3942 | E12: 3088 | F12: 2373 | G12: 2055 | H12: 1562
A13: 22 | B13: 22 | D13: 4044 | E13: 3186 | F13: 2440 | G13: 2112 | H13: 1604
A14: 23 | B14: 23 | D14: 4146 | E14: 3276 | F14: 2512 | G14: 2174 | H14: 1650
A15: 24 | B15: 24 | D15: 4254 | E15: 3372 | F15: 2578 | G15: 2229 | H15: 1693
A16: 25 | B16: 25 | D16: 4352 | E16: 3470 | F16: 2645 | G16: 2291 | H16: 1735
A17: 26 | B17: 26 | D17: 4459 | E17: 3564 | F17: 2715 | G17: 2347 | H17: 1777
A18: 27 | B18: 27 | D18: 4562 | E18: 3656 | F18: 2779 | G18: 2407 | H18: 1820
A19: 28 | B19: 28 | D19: 4729 | E19: 3783 | F19: 2825 | G19: 2458 | H19: 1889
A20: 29 | B20: 29 | D20: 4897 | E20: 3912 | F20: 2870 | G20: 2509 | H20: 1959
A21: 30 | B21: 30 | D21: 5067 | E21: 4034 | F21: 2916 | G21: 2555 | H21: 2029
A22: 31 | B22: 31 | D22: 5235 | E22: 4161 | F22: 2957 | G22: 2604 | H22: 2097
A23: 32 | B23: 32 | D23: 5403 | E23: 4287 | F23: 3003 | G23: 2659 | H23: 2165
A24: 33 | B24: 33 | D24: 5511 | E24: 4382 | F24: 3083 | G24: 2713 | H24: 2218
A25: 34 | B25: 34 | D25: 5628 | E25: 4475 | F25: 3152 | G25: 2760 | H25: 2267
A26: 35 | B26: 35 | D26: 5737 | E26: 4567 | F26: 3232 | G26: 2818 | H26: 2321
A27: 36 | B27: 36 | D27: 5848 | E27: 4661 | F27: 3306 | G27: 2870 | H27: 2372
A28: 37 | B28: 37 | D28: 5967 | E28: 4753 | F28: 3383 | G28: 2928 | H28: 2422
A29: 38 | B29: 38 | D29: 6072 | E29: 4861 | F29: 3437 | G29: 2981 | H29: 2469
A30: 39 | B30: 39 | D30: 6184 | E30: 4965 | F30: 3497 | G30: 3039 | H30: 2522
A31: 40 | B31: 40 | D31: 6299 | E31: 5068 | F31: 3553 | G31: 3097 | H31: 2573
A32: 41 | B32: 41 | D32: 6406 | E32: 5174 | F32: 3612 | G32: 3150 | H32: 2619
A33: 42 | B33: 42 | D33: 6517 | E33: 5279 | F33: 3670 | G33: 3210 | H33: 2666
A34: 43 | B34: 43 | D34: 6747 | E34: 5485 | F34: 3804 | G34: 3330 | H34: 2760
A35: 44 | B35: 44 | D35: 6971 | E35: 5687 | F35: 3943 | G35: 3446 | H35: 2865
A36: 45 | B36: 45 | D36: 7198 | E36: 5895 | F36: 4081 | G36: 3564 | H36: 2961
A37: 46 | B37: 46 | D37: 7429 | E37: 6101 | F37: 4222 | G37: 3681 | H37: 3061
A38: 47 | B38: 47 | D38: 7656 | E38: 6306 | F38: 4353 | G38: 3801 | H38: 3161
A39: 48 | B39: 48 | D39: 7872 | E39: 6419 | F39: 4483 | G39: 3913 | H39: 3215
A40: 49 | B40: 49 | D40: 8092 | E40: 6536 | F40: 4603 | G40: 4026 | H40: 3274
A41: 50 | B41: 50 | D41: 8311 | E41: 6650 | F41: 4728 | G41: 4134 | H41: 3330
A42: 51 | B42: 51 | D42: 8528 | E42: 6764 | F42: 4850 | G42: 4241 | H42: 3384
A43: 52 | B43: 52 | D43: 8744 | E43: 6874 | F43: 4974 | G43: 4349 | H43: 3438
A44: 53 | B44: 53 | D44: 9052 | E44: 7146 | F44: 5158 | G44: 4512 | H44: 3565
A45: 54 | B45: 54 | D45: 9359 | E45: 7407 | F45: 5345 | G45: 4670 | H45: 3694
A46: 55 | B46: 55 | D46: 9668 | E46: 7674 | F46: 5528 | G46: 4833 | H46: 3819
A47: 56 | B47: 56 | D47: 9982 | E47: 7942 | F47: 5710 | G47: 4989 | H47: 3943
A48: 57 | B48: 57 | D48: 10285 | E48: 8210 | F48: 5895 | G48: 5154 | H48: 4074
A49: 58 | B49: 58 | D49: 10826 | E49: 8760 | F49: 6279 | G49: 5500 | H49: 4367
A50: 59 | B50: 59 | D50: 11372 | E50: 9313 | F50: 6660 | G50: 5846 | H50: 4666
A51: 60 | B51: 60 | D51: 11916 | E51: 9864 | F51: 7043 | G51: 6192 | H51: 4972
A52: 61 | B52: 61 | D52: 12570 | E52: 10439 | F52: 7445 | G52: 6561 | H52: 5271
A53: 62 | B53: 62 | D53: 13290 | E53: 11031 | F53: 7852 | G53: 6939 | H53: 5579
A54: 63 | B54: 63 | D54: 14007 | E54: 11652 | F54: 8267 | G54: 7322 | H54: 5893
A55: 64 | B55: 64 | D55: 14764 | E55: 12319 | F55: 8714 | G55: 7712 | H55: 6202
A56: 65 | B56: 65 | D56: 15565 | E56: 13010 | F56: 9296 | G56: 8117 | H56: 6517
A57: 66 | B57: 66 | D57: 16561 | E57: 13802 | F57: 9955 | G57: 8685 | H57: 6908
A58: 67 | B58: 67 | D58: 17885 | E58: 14904 | F58: 10761 | G58: 9355 | H58: 7465
A59: 68 | B59: 68 | D59: 19389 | E59: 16168 | F59: 11663 | G59: 10147 | H59: 8097
A60: 69 | B60: 69 | D60: 21170 | E60: 17648 | F60: 12737 | G60: 11074 | H60: 8837
A61: 70 | B61: 70 | D61: 23210 | E61: 19641 | F61: 13891 | G61: 12202 | H61: 9721
A62: 71 | B62: 71 | D62: 25560 | E62: 21640 | F62: 15384 | G62: 13440 | H62: 10714
A63: 72 | B63: 72 | D63: 28273 | E63: 23930 | F63: 17020 | G63: 14877 | H63: 11858
A64: 73 | B64: 73 | D64: 31394 | E64: 26553 | F64: 18896 | G64: 16513 | H64: 13165
A65: 74 | B65: 74 | D65: 34999 | E65: 29608 | F65: 21072 | G65: 18354 | H65: 14679
A66: 75 | B66: 75 | D66: 39072 | E66: 34408 | F66: 24311 | G66: 21051 | H66: 16302
A67: 76 | B67: 76 | D67: 46180 | E67: 40654 | F67: 28223 | G67: 24332 | H67: 18812
A68: 77 | B68: 77 | D68: 53456 | E68: 47043 | F68: 32962 | G68: 28416 | H68: 21569
A69: 78 | B69: 78 | D69: 62160 | E69: 53720 | F69: 38115 | G69: 32860 | H69: 24702
A70: 79 | B70: 79 | D70: 71036 | E70: 60979 | F70: 44498 | G70: 38363 | H70: 28217
A71: 80+ | B71: 80+ | D71: 80987 | E71: 69691 | F71: 51299 | G71: 44223 | H71: 31851
A72: 1 | B72: 1 Child | D72: 1609 | E72: 1328 | F72: 933 | G72: 811 | H72: 687
A73: 2 | B73: 2 Children | D73: 2708 | E73: 1976 | F73: 1481 | G73: 1276 | H73: 1095
A74: 3 | B74: 3+ Children | D74: 3980 | E74: 2839 | F74: 2142 | G74: 1855 | H74: 1581
A75: 1 | B75: Rider Comp. Maternidad | D75: 225 | E75: 225 | F75: 225 | G75: 225 | H75: 225
A76: 1 | B76: Transplante de organos | D76: 300 | E76: 300 | F76: 300 | G76: 300 | H76: 300

Sheet Belize 4 (hidden)
K1: D1 | L1: D2 | M1: D3 | N1: D4 | O1: D5 | P1: D6
B2: REGIÓN | C2: ='INGRESO DE DATOS'!W22 -> Bolivia | E2: FACTOR SEMESTRAL : | G2: 0.53 | I2: NEW BUSINESS DISCUOUNTS | K2: ='INGRESO DE DATOS'!O42 -> 1 | L2: ='INGRESO DE DATOS'!P42 -> 1 | M2: ='INGRESO DE DATOS'!Q42 -> 1 | N2: ='INGRESO DE DATOS'!R42 -> 1 | O2: ='INGRESO DE DATOS'!S42 -> 1 | P2: ='INGRESO DE DATOS'!T42 -> 1
A5: BUPA ALPHA
A6: TARIFAS ANUALES
A8: EDAD | C8: DW1 | D8: DW2 | E8: DW3 | F8: DW4 | G8: DW5 | H8: DW6 | I8: DW7
A9: 18 | B9: 18 | D9: 4454 | E9: 3450 | F9: 2668 | G9: 2311 | H9: 1759
A10: 19 | B10: 19 | D10: 4575 | E10: 3559 | F10: 2743 | G10: 2377 | H10: 1806
A11: 20 | B11: 20 | D11: 4699 | E11: 3667 | F11: 2824 | G11: 2449 | H11: 1860
A12: 21 | B12: 21 | D12: 4821 | E12: 3785 | F12: 2906 | G12: 2514 | H12: 1910
A13: 22 | B13: 22 | D13: 4951 | E13: 3900 | F13: 2990 | G13: 2587 | H13: 1969
A14: 23 | B14: 23 | D14: 5076 | E14: 4019 | F14: 3067 | G14: 2662 | H14: 2018
A15: 24 | B15: 24 | D15: 5206 | E15: 4133 | F15: 3152 | G15: 2732 | H15: 2076
A16: 25 | B16: 25 | D16: 5338 | E16: 4254 | F16: 3241 | G16: 2802 | H16: 2127
A17: 26 | B17: 26 | D17: 5463 | E17: 4368 | F17: 3320 | G17: 2874 | H17: 2180
A18: 27 | B18: 27 | D18: 5594 | E18: 4488 | F18: 3406 | G18: 2948 | H18: 2234
A19: 28 | B19: 28 | D19: 5801 | E19: 4637 | F19: 3459 | G19: 3007 | H19: 2317
A20: 29 | B20: 29 | D20: 6005 | E20: 4791 | F20: 3518 | G20: 3066 | H20: 2401
A21: 30 | B21: 30 | D21: 6215 | E21: 4940 | F21: 3570 | G21: 3128 | H21: 2485
A22: 31 | B22: 31 | D22: 6415 | E22: 5096 | F22: 3627 | G22: 3195 | H22: 2569
A23: 32 | B23: 32 | D23: 6626 | E23: 5251 | F23: 3682 | G23: 3248 | H23: 2648
A24: 33 | B24: 33 | D24: 6763 | E24: 5362 | F24: 3775 | G24: 3320 | H24: 2714
A25: 34 | B25: 34 | D25: 6897 | E25: 5477 | F25: 3867 | G25: 3386 | H25: 2778
A26: 35 | B26: 35 | D26: 7033 | E26: 5592 | F26: 3957 | G26: 3450 | H26: 2839
A27: 36 | B27: 36 | D27: 7170 | E27: 5701 | F27: 4048 | G27: 3518 | H27: 2905
A28: 37 | B28: 37 | D28: 7303 | E28: 5820 | F28: 4146 | G28: 3584 | H28: 2966
A29: 38 | B29: 38 | D29: 7441 | E29: 5943 | F29: 4213 | G29: 3652 | H29: 3029
A30: 39 | B30: 39 | D30: 7580 | E30: 6076 | F30: 4281 | G30: 3726 | H30: 3085
A31: 40 | B31: 40 | D31: 7711 | E31: 6201 | F31: 4352 | G31: 3788 | H31: 3148
A32: 41 | B32: 41 | D32: 7847 | E32: 6323 | F32: 4421 | G32: 3860 | H32: 3206
A33: 42 | B33: 42 | D33: 7982 | E33: 6454 | F33: 4491 | G33: 3929 | H33: 3265
A34: 43 | B34: 43 | D34: 8263 | E34: 6710 | F34: 4661 | G34: 4074 | H34: 3386
A35: 44 | B35: 44 | D35: 8537 | E35: 6961 | F35: 4825 | G35: 4218 | H35: 3507
A36: 45 | B36: 45 | D36: 8816 | E36: 7217 | F36: 4998 | G36: 4365 | H36: 3627
A37: 46 | B37: 46 | D37: 9096 | E37: 7470 | F37: 5163 | G37: 4506 | H37: 3748
A38: 47 | B38: 47 | D38: 9373 | E38: 7724 | F38: 5337 | G38: 4653 | H38: 3867
A39: 48 | B39: 48 | D39: 9643 | E39: 7866 | F39: 5485 | G39: 4788 | H39: 3980
A40: 49 | B40: 49 | D40: 9911 | E40: 8001 | F40: 5636 | G40: 4915 | H40: 4088
A41: 50 | B41: 50 | D41: 10180 | E41: 8141 | F41: 5786 | G41: 5060 | H41: 4206
A42: 51 | B42: 51 | D42: 10448 | E42: 8276 | F42: 5934 | G42: 5187 | H42: 4318
A43: 52 | B43: 52 | D43: 10716 | E43: 8420 | F43: 6090 | G43: 5319 | H43: 4429
A44: 53 | B44: 53 | D44: 11092 | E44: 8742 | F44: 6318 | G44: 5520 | H44: 4590
A45: 54 | B45: 54 | D45: 11466 | E45: 9071 | F45: 6540 | G45: 5715 | H45: 4759
A46: 55 | B46: 55 | D46: 11839 | E46: 9397 | F46: 6772 | G46: 5913 | H46: 4914
A47: 56 | B47: 56 | D47: 12215 | E47: 9720 | F47: 6992 | G47: 6111 | H47: 5076
A48: 57 | B48: 57 | D48: 12588 | E48: 10045 | F48: 7218 | G48: 6312 | H48: 5241
A49: 58 | B49: 58 | D49: 13259 | E49: 10724 | F49: 7688 | G49: 6734 | H49: 5621
A50: 59 | B50: 59 | D50: 13927 | E50: 11404 | F50: 8153 | G50: 7157 | H50: 5997
A51: 60 | B51: 60 | D51: 14594 | E51: 12081 | F51: 8619 | G51: 7588 | H51: 6376
A52: 61 | B52: 61 | D52: 15406 | E52: 12781 | F52: 9113 | G52: 8035 | H52: 6763
A53: 62 | B53: 62 | D53: 16281 | E53: 13501 | F53: 9610 | G53: 8501 | H53: 7152
A54: 63 | B54: 63 | D54: 17158 | E54: 14265 | F54: 10124 | G54: 8962 | H54: 7549
A55: 64 | B55: 64 | D55: 18094 | E55: 15078 | F55: 10673 | G55: 9441 | H55: 7949
A56: 65 | B56: 65 | D56: 19056 | E56: 15929 | F56: 11381 | G56: 9934 | H56: 8350
A57: 66 | B57: 66 | D57: 20278 | E57: 16900 | F57: 12187 | G57: 10633 | H57: 8859
A58: 67 | B58: 67 | D58: 21904 | E58: 18253 | F58: 13167 | G58: 11455 | H58: 9568
A59: 68 | B59: 68 | D59: 23746 | E59: 19780 | F59: 14277 | G59: 12426 | H59: 10390
A60: 69 | B60: 69 | D60: 25933 | E60: 21600 | F60: 15595 | G60: 13558 | H60: 11346
A61: 70 | B61: 70 | D61: 28422 | E61: 24035 | F61: 17001 | G61: 14941 | H61: 12471
A62: 71 | B62: 71 | D62: 31298 | E62: 26488 | F62: 18824 | G62: 16453 | H62: 13742
A63: 72 | B63: 72 | D63: 34635 | E63: 29292 | F63: 20839 | G63: 18209 | H63: 15211
A64: 73 | B64: 73 | D64: 38442 | E64: 32500 | F64: 23125 | G64: 20216 | H64: 16883
A65: 74 | B65: 74 | D65: 42861 | E65: 36243 | F65: 25792 | G65: 22471 | H65: 18828
A66: 75 | B66: 75 | D66: 47854 | E66: 42120 | F66: 29750 | G66: 25771 | H66: 21011
A67: 76 | B67: 76 | D67: 56549 | E67: 49765 | F67: 34541 | G67: 29797 | H67: 24241
A68: 77 | B68: 77 | D68: 65468 | E68: 57582 | F68: 40342 | G68: 34799 | H68: 27794
A69: 78 | B69: 78 | D69: 76128 | E69: 65758 | F69: 46642 | G69: 40234 | H69: 31838
A70: 79 | B70: 79 | D70: 87003 | E70: 74641 | F70: 54460 | G70: 46977 | H70: 36359
A71: 80+ | B71: 80+ | D71: 99182 | E71: 85303 | F71: 62778 | G71: 54151 | H71: 41050
A72: 1 | B72: 1 Child | D72: 1971 | E72: 1624 | F72: 1148 | G72: 988 | H72: 843
A73: 2 | B73: 2 Children | D73: 3317 | E73: 2430 | F73: 1806 | G73: 1561 | H73: 1341
A74: 3 | B74: 3+ Children | D74: 4867 | E74: 3487 | F74: 2621 | G74: 2258 | H74: 1934
A75: 1 | B75: Rider Comp. Maternidad | D75: 225 | E75: 225 | F75: 225 | G75: 225 | H75: 225
A76: 1 | B76: Transplante de organos | D76: 300 | E76: 300 | F76: 300 | G76: 300 | H76: 300

Sheet Caribe 4 (hidden)
K1: D1 | L1: D2 | M1: D3 | N1: D4 | O1: D5 | P1: D6
B2: REGIÓN | C2: ='INGRESO DE DATOS'!W22 -> Bolivia | E2: FACTOR SEMESTRAL : | G2: 0.53 | I2: NEW BUSINESS DISCUOUNTS | K2: ='INGRESO DE DATOS'!O42 -> 1 | L2: ='INGRESO DE DATOS'!P42 -> 1 | M2: ='INGRESO DE DATOS'!Q42 -> 1 | N2: ='INGRESO DE DATOS'!R42 -> 1 | O2: ='INGRESO DE DATOS'!S42 -> 1 | P2: ='INGRESO DE DATOS'!T42 -> 1
A5: BUPA ALPHA
A6: TARIFAS ANUALES
A8: EDAD | C8: DW1 | D8: DW2 | E8: DW3 | F8: DW4 | G8: DW5 | H8: DW6 | I8: DW7
A9: 18 | B9: 18 | D9: 4454 | E9: 3450 | F9: 2668 | G9: 2311 | H9: 1759
A10: 19 | B10: 19 | D10: 4575 | E10: 3559 | F10: 2743 | G10: 2377 | H10: 1806
A11: 20 | B11: 20 | D11: 4699 | E11: 3667 | F11: 2824 | G11: 2449 | H11: 1860
A12: 21 | B12: 21 | D12: 4821 | E12: 3785 | F12: 2906 | G12: 2514 | H12: 1910
A13: 22 | B13: 22 | D13: 4951 | E13: 3900 | F13: 2990 | G13: 2587 | H13: 1969
A14: 23 | B14: 23 | D14: 5076 | E14: 4019 | F14: 3067 | G14: 2662 | H14: 2018
A15: 24 | B15: 24 | D15: 5206 | E15: 4133 | F15: 3152 | G15: 2732 | H15: 2076
A16: 25 | B16: 25 | D16: 5338 | E16: 4254 | F16: 3241 | G16: 2802 | H16: 2127
A17: 26 | B17: 26 | D17: 5463 | E17: 4368 | F17: 3320 | G17: 2874 | H17: 2180
A18: 27 | B18: 27 | D18: 5594 | E18: 4488 | F18: 3406 | G18: 2948 | H18: 2234
A19: 28 | B19: 28 | D19: 5801 | E19: 4637 | F19: 3459 | G19: 3007 | H19: 2317
A20: 29 | B20: 29 | D20: 6005 | E20: 4791 | F20: 3518 | G20: 3066 | H20: 2401
A21: 30 | B21: 30 | D21: 6215 | E21: 4940 | F21: 3570 | G21: 3128 | H21: 2485
A22: 31 | B22: 31 | D22: 6415 | E22: 5096 | F22: 3627 | G22: 3195 | H22: 2569
A23: 32 | B23: 32 | D23: 6626 | E23: 5251 | F23: 3682 | G23: 3248 | H23: 2648
A24: 33 | B24: 33 | D24: 6763 | E24: 5362 | F24: 3775 | G24: 3320 | H24: 2714
A25: 34 | B25: 34 | D25: 6897 | E25: 5477 | F25: 3867 | G25: 3386 | H25: 2778
A26: 35 | B26: 35 | D26: 7033 | E26: 5592 | F26: 3957 | G26: 3450 | H26: 2839
A27: 36 | B27: 36 | D27: 7170 | E27: 5701 | F27: 4048 | G27: 3518 | H27: 2905
A28: 37 | B28: 37 | D28: 7303 | E28: 5820 | F28: 4146 | G28: 3584 | H28: 2966
A29: 38 | B29: 38 | D29: 7441 | E29: 5943 | F29: 4213 | G29: 3652 | H29: 3029
A30: 39 | B30: 39 | D30: 7580 | E30: 6076 | F30: 4281 | G30: 3726 | H30: 3085
A31: 40 | B31: 40 | D31: 7711 | E31: 6201 | F31: 4352 | G31: 3788 | H31: 3148
A32: 41 | B32: 41 | D32: 7847 | E32: 6323 | F32: 4421 | G32: 3860 | H32: 3206
A33: 42 | B33: 42 | D33: 7982 | E33: 6454 | F33: 4491 | G33: 3929 | H33: 3265
A34: 43 | B34: 43 | D34: 8263 | E34: 6710 | F34: 4661 | G34: 4074 | H34: 3386
A35: 44 | B35: 44 | D35: 8537 | E35: 6961 | F35: 4825 | G35: 4218 | H35: 3507
A36: 45 | B36: 45 | D36: 8816 | E36: 7217 | F36: 4998 | G36: 4365 | H36: 3627
A37: 46 | B37: 46 | D37: 9096 | E37: 7470 | F37: 5163 | G37: 4506 | H37: 3748
A38: 47 | B38: 47 | D38: 9373 | E38: 7724 | F38: 5337 | G38: 4653 | H38: 3867
A39: 48 | B39: 48 | D39: 9643 | E39: 7866 | F39: 5485 | G39: 4788 | H39: 3980
A40: 49 | B40: 49 | D40: 9911 | E40: 8001 | F40: 5636 | G40: 4915 | H40: 4088
A41: 50 | B41: 50 | D41: 10180 | E41: 8141 | F41: 5786 | G41: 5060 | H41: 4206
A42: 51 | B42: 51 | D42: 10448 | E42: 8276 | F42: 5934 | G42: 5187 | H42: 4318
A43: 52 | B43: 52 | D43: 10716 | E43: 8420 | F43: 6090 | G43: 5319 | H43: 4429
A44: 53 | B44: 53 | D44: 11092 | E44: 8742 | F44: 6318 | G44: 5520 | H44: 4590
A45: 54 | B45: 54 | D45: 11466 | E45: 9071 | F45: 6540 | G45: 5715 | H45: 4759
A46: 55 | B46: 55 | D46: 11839 | E46: 9397 | F46: 6772 | G46: 5913 | H46: 4914
A47: 56 | B47: 56 | D47: 12215 | E47: 9720 | F47: 6992 | G47: 6111 | H47: 5076
A48: 57 | B48: 57 | D48: 12588 | E48: 10045 | F48: 7218 | G48: 6312 | H48: 5241
A49: 58 | B49: 58 | D49: 13259 | E49: 10724 | F49: 7688 | G49: 6734 | H49: 5621
A50: 59 | B50: 59 | D50: 13927 | E50: 11404 | F50: 8153 | G50: 7157 | H50: 5997
A51: 60 | B51: 60 | D51: 14594 | E51: 12081 | F51: 8619 | G51: 7588 | H51: 6376
A52: 61 | B52: 61 | D52: 15406 | E52: 12781 | F52: 9113 | G52: 8035 | H52: 6763
A53: 62 | B53: 62 | D53: 16281 | E53: 13501 | F53: 9610 | G53: 8501 | H53: 7152
A54: 63 | B54: 63 | D54: 17158 | E54: 14265 | F54: 10124 | G54: 8962 | H54: 7549
A55: 64 | B55: 64 | D55: 18094 | E55: 15078 | F55: 10673 | G55: 9441 | H55: 7949
A56: 65 | B56: 65 | D56: 19056 | E56: 15929 | F56: 11381 | G56: 9934 | H56: 8350
A57: 66 | B57: 66 | D57: 20278 | E57: 16900 | F57: 12187 | G57: 10633 | H57: 8859
A58: 67 | B58: 67 | D58: 21904 | E58: 18253 | F58: 13167 | G58: 11455 | H58: 9568
A59: 68 | B59: 68 | D59: 23746 | E59: 19780 | F59: 14277 | G59: 12426 | H59: 10390
A60: 69 | B60: 69 | D60: 25933 | E60: 21600 | F60: 15595 | G60: 13558 | H60: 11346
A61: 70 | B61: 70 | D61: 28422 | E61: 24035 | F61: 17001 | G61: 14941 | H61: 12471
A62: 71 | B62: 71 | D62: 31298 | E62: 26488 | F62: 18824 | G62: 16453 | H62: 13742
A63: 72 | B63: 72 | D63: 34635 | E63: 29292 | F63: 20839 | G63: 18209 | H63: 15211
A64: 73 | B64: 73 | D64: 38442 | E64: 32500 | F64: 23125 | G64: 20216 | H64: 16883
A65: 74 | B65: 74 | D65: 42861 | E65: 36243 | F65: 25792 | G65: 22471 | H65: 18828
A66: 75 | B66: 75 | D66: 47854 | E66: 42120 | F66: 29750 | G66: 25771 | H66: 21011
A67: 76 | B67: 76 | D67: 56549 | E67: 49765 | F67: 34541 | G67: 29797 | H67: 24241
A68: 77 | B68: 77 | D68: 65468 | E68: 57582 | F68: 40342 | G68: 34799 | H68: 27794
A69: 78 | B69: 78 | D69: 76128 | E69: 65758 | F69: 46642 | G69: 40234 | H69: 31838
A70: 79 | B70: 79 | D70: 87003 | E70: 74641 | F70: 54460 | G70: 46977 | H70: 36359
A71: 80+ | B71: 80+ | D71: 99182 | E71: 85303 | F71: 62778 | G71: 54151 | H71: 41050
A72: 1 | B72: 1 Child | D72: 1971 | E72: 1624 | F72: 1148 | G72: 988 | H72: 843
A73: 2 | B73: 2 Children | D73: 3317 | E73: 2430 | F73: 1806 | G73: 1561 | H73: 1341
A74: 3 | B74: 3+ Children | D74: 4867 | E74: 3487 | F74: 2621 | G74: 2258 | H74: 1934
A75: 1 | B75: Rider Comp. Maternidad | D75: 225 | E75: 225 | F75: 225 | G75: 225 | H75: 225
A76: 1 | B76: Transplante de organos | D76: 300 | E76: 300 | F76: 300 | G76: 300 | H76: 300

Sheet Chile 2 (hidden)
K1: D1 | L1: D2 | M1: D3 | N1: D4 | O1: D5 | P1: D6
B2: REGIÓN | C2: ='INGRESO DE DATOS'!W22 -> Bolivia | E2: FACTOR SEMESTRAL : | G2: 0.53 | I2: NEW BUSINESS DISCUOUNTS | K2: ='INGRESO DE DATOS'!O42 -> 1 | L2: ='INGRESO DE DATOS'!P42 -> 1 | M2: ='INGRESO DE DATOS'!Q42 -> 1 | N2: ='INGRESO DE DATOS'!R42 -> 1 | O2: ='INGRESO DE DATOS'!S42 -> 1 | P2: ='INGRESO DE DATOS'!T42 -> 1
A5: BUPA ALPHA
A6: TARIFAS ANUALES
A8: EDAD | C8: DW1 | D8: DW2 | E8: DW3 | F8: DW4 | G8: DW5 | H8: DW6 | I8: DW7
A9: 18 | B9: 18 | D9: 4223 | E9: 3272 | F9: 2533 | G9: 2187 | H9: 1669
A10: 19 | B10: 19 | D10: 4334 | E10: 3380 | F10: 2606 | G10: 2251 | H10: 1715
A11: 20 | B11: 20 | D11: 4450 | E11: 3477 | F11: 2681 | G11: 2317 | H11: 1764
A12: 21 | B12: 21 | D12: 4569 | E12: 3584 | F12: 2753 | G12: 2377 | H12: 1810
A13: 22 | B13: 22 | D13: 4693 | E13: 3695 | F13: 2832 | G13: 2450 | H13: 1860
A14: 23 | B14: 23 | D14: 4813 | E14: 3812 | F14: 2908 | G14: 2513 | H14: 1910
A15: 24 | B15: 24 | D15: 4933 | E15: 3912 | F15: 2991 | G15: 2583 | H15: 1958
A16: 25 | B16: 25 | D16: 5054 | E16: 4025 | F16: 3063 | G16: 2653 | H16: 2009
A17: 26 | B17: 26 | D17: 5175 | E17: 4136 | F17: 3145 | G17: 2718 | H17: 2057
A18: 27 | B18: 27 | D18: 5300 | E18: 4245 | F18: 3218 | G18: 2787 | H18: 2111
A19: 28 | B19: 28 | D19: 5492 | E19: 4393 | F19: 3272 | G19: 2845 | H19: 2190
A20: 29 | B20: 29 | D20: 5688 | E20: 4538 | F20: 3327 | G20: 2906 | H20: 2267
A21: 30 | B21: 30 | D21: 5882 | E21: 4680 | F21: 3381 | G21: 2960 | H21: 2348
A22: 31 | B22: 31 | D22: 6072 | E22: 4830 | F22: 3428 | G22: 3019 | H22: 2424
A23: 32 | B23: 32 | D23: 6268 | E23: 4976 | F23: 3487 | G23: 3076 | H23: 2509
A24: 33 | B24: 33 | D24: 6398 | E24: 5084 | F24: 3572 | G24: 3138 | H24: 2568
A25: 34 | B25: 34 | D25: 6529 | E25: 5192 | F25: 3657 | G25: 3207 | H25: 2630
A26: 35 | B26: 35 | D26: 6658 | E26: 5301 | F26: 3749 | G26: 3264 | H26: 2692
A27: 36 | B27: 36 | D27: 6788 | E27: 5412 | F27: 3835 | G27: 3329 | H27: 2753
A28: 37 | B28: 37 | D28: 6922 | E28: 5522 | F28: 3916 | G28: 3391 | H28: 2814
A29: 38 | B29: 38 | D29: 7048 | E29: 5642 | F29: 3990 | G29: 3457 | H29: 2868
A30: 39 | B30: 39 | D30: 7179 | E30: 5760 | F30: 4054 | G30: 3521 | H30: 2926
A31: 40 | B31: 40 | D31: 7311 | E31: 5882 | F31: 4122 | G31: 3584 | H31: 2977
A32: 41 | B32: 41 | D32: 7436 | E32: 5996 | F32: 4188 | G32: 3652 | H32: 3038
A33: 42 | B33: 42 | D33: 7567 | E33: 6121 | F33: 4256 | G33: 3716 | H33: 3088
A34: 43 | B34: 43 | D34: 7832 | E34: 6360 | F34: 4417 | G34: 3853 | H34: 3208
A35: 44 | B35: 44 | D35: 8094 | E35: 6598 | F35: 4578 | G35: 3999 | H35: 3319
A36: 45 | B36: 45 | D36: 8359 | E36: 6837 | F36: 4739 | G36: 4139 | H36: 3437
A37: 46 | B37: 46 | D37: 8623 | E37: 7082 | F37: 4897 | G37: 4276 | H37: 3554
A38: 47 | B38: 47 | D38: 8887 | E38: 7324 | F38: 5060 | G38: 4417 | H38: 3665
A39: 48 | B39: 48 | D39: 9140 | E39: 7452 | F39: 5203 | G39: 4542 | H39: 3730
A40: 49 | B40: 49 | D40: 9394 | E40: 7585 | F40: 5346 | G40: 4666 | H40: 3797
A41: 50 | B41: 50 | D41: 9650 | E41: 7720 | F41: 5492 | G41: 4795 | H41: 3864
A42: 51 | B42: 51 | D42: 9908 | E42: 7851 | F42: 5636 | G42: 4920 | H42: 3931
A43: 52 | B43: 52 | D43: 10162 | E43: 7983 | F43: 5781 | G43: 5044 | H43: 3999
A44: 53 | B44: 53 | D44: 10518 | E44: 8292 | F44: 5994 | G44: 5231 | H44: 4140
A45: 54 | B45: 54 | D45: 10872 | E45: 8600 | F45: 6204 | G45: 5415 | H45: 4283
A46: 55 | B46: 55 | D46: 11227 | E46: 8915 | F46: 6418 | G46: 5604 | H46: 4428
A47: 56 | B47: 56 | D47: 11588 | E47: 9223 | F47: 6632 | G47: 5789 | H47: 4575
A48: 57 | B48: 57 | D48: 11941 | E48: 9527 | F48: 6841 | G48: 5973 | H48: 4721
A49: 58 | B49: 58 | D49: 12571 | E49: 10168 | F49: 7288 | G49: 6378 | H49: 5064
A50: 59 | B50: 59 | D50: 13205 | E50: 10813 | F50: 7733 | G50: 6787 | H50: 5412
A51: 60 | B51: 60 | D51: 13841 | E51: 11454 | F51: 8180 | G51: 7191 | H51: 5761
A52: 61 | B52: 61 | D52: 14602 | E52: 12123 | F52: 8646 | G52: 7618 | H52: 6117
A53: 62 | B53: 62 | D53: 15432 | E53: 12801 | F53: 9114 | G53: 8063 | H53: 6475
A54: 63 | B54: 63 | D54: 16266 | E54: 13526 | F54: 9602 | G54: 8500 | H54: 6837
A55: 64 | B55: 64 | D55: 17147 | E55: 14306 | F55: 10115 | G55: 8950 | H55: 7198
A56: 65 | B56: 65 | D56: 18065 | E56: 15105 | F56: 10789 | G56: 9421 | H56: 7563
A57: 66 | B57: 66 | D57: 19224 | E57: 16025 | F57: 11557 | G57: 10082 | H57: 8016
A58: 67 | B58: 67 | D58: 20756 | E58: 17308 | F58: 12485 | G58: 10860 | H58: 8661
A59: 68 | B59: 68 | D59: 22509 | E59: 18766 | F59: 13542 | G59: 11781 | H59: 9395
A60: 69 | B60: 69 | D60: 24583 | E60: 20492 | F60: 14787 | G60: 12863 | H60: 10262
A61: 70 | B61: 70 | D61: 26941 | E61: 22796 | F61: 16121 | G61: 14173 | H61: 11280
A62: 71 | B62: 71 | D62: 29675 | E62: 25129 | F62: 17857 | G62: 15595 | H62: 12437
A63: 72 | B63: 72 | D63: 32831 | E63: 27781 | F63: 19762 | G63: 17269 | H63: 13760
A64: 73 | B64: 73 | D64: 36443 | E64: 30835 | F64: 21935 | G64: 19174 | H64: 15281
A65: 74 | B65: 74 | D65: 40634 | E65: 34378 | F65: 24459 | G65: 21312 | H65: 17046
A66: 75 | B66: 75 | D66: 45358 | E66: 39953 | F66: 28224 | G66: 24442 | H66: 18920
A67: 76 | B67: 76 | D67: 53605 | E67: 47201 | F67: 32772 | G67: 28259 | H67: 21834
A68: 77 | B68: 77 | D68: 62059 | E68: 54622 | F68: 38271 | G68: 33004 | H68: 25028
A69: 78 | B69: 78 | D69: 72165 | E69: 62373 | F69: 44252 | G69: 38154 | H69: 28669
A70: 79 | B70: 79 | D70: 82474 | E70: 70799 | F70: 51665 | G70: 44550 | H70: 32746
A71: 80+ | B71: 80+ | D71: 94017 | E71: 80916 | F71: 59555 | G71: 51360 | H71: 36966
A72: 1 | B72: 1 Child | D72: 1870 | E72: 1546 | F72: 1091 | G72: 936 | H72: 799
A73: 2 | B73: 2 Children | D73: 3153 | E73: 2285 | F73: 1716 | G73: 1473 | H73: 1267
A74: 3 | B74: 3+ Children | D74: 4619 | E74: 3300 | F74: 2492 | G74: 2146 | H74: 1836
A75: 1 | B75: Rider Comp. Maternidad | D75: 225 | E75: 225 | F75: 225 | G75: 225 | H75: 225
A76: 1 | B76: Transplante de organos | D76: 300 | E76: 300 | F76: 300 | G76: 300 | H76: 300

Sheet Colombia 6 (hidden)
B2: REGIÓN | C2: ='INGRESO DE DATOS'!W22 -> Bolivia | E2: FACTOR SEMESTRAL : | G2: 0.53 | I2: NEW BUSINESS DISCUOUNTS
A5: BUPA ALPHA
A6: TARIFAS ANUALES
A8: EDAD | C8: DW1 | D8: DW2 | E8: DW3 | F8: DW4 | G8: DW5 | H8: DW6 | I8: DW7
A9: 18 | B9: 18 | D9: 3644 | E9: 2822 | F9: 2180 | G9: 1888 | H9: 1441
A10: 19 | B10: 19 | D10: 3739 | E10: 2908 | F10: 2245 | G10: 1940 | H10: 1481
A11: 20 | B11: 20 | D11: 3838 | E11: 2994 | F11: 2308 | G11: 2001 | H11: 1519
A12: 21 | B12: 21 | D12: 3942 | E12: 3088 | F12: 2373 | G12: 2055 | H12: 1562
A13: 22 | B13: 22 | D13: 4044 | E13: 3186 | F13: 2440 | G13: 2112 | H13: 1604
A14: 23 | B14: 23 | D14: 4146 | E14: 3276 | F14: 2512 | G14: 2174 | H14: 1650
A15: 24 | B15: 24 | D15: 4254 | E15: 3372 | F15: 2578 | G15: 2229 | H15: 1693
A16: 25 | B16: 25 | D16: 4352 | E16: 3470 | F16: 2645 | G16: 2291 | H16: 1735
A17: 26 | B17: 26 | D17: 4459 | E17: 3564 | F17: 2715 | G17: 2347 | H17: 1777
A18: 27 | B18: 27 | D18: 4562 | E18: 3656 | F18: 2779 | G18: 2407 | H18: 1820
A19: 28 | B19: 28 | D19: 4729 | E19: 3783 | F19: 2825 | G19: 2458 | H19: 1889
A20: 29 | B20: 29 | D20: 4897 | E20: 3912 | F20: 2870 | G20: 2509 | H20: 1959
A21: 30 | B21: 30 | D21: 5067 | E21: 4034 | F21: 2916 | G21: 2555 | H21: 2029
A22: 31 | B22: 31 | D22: 5235 | E22: 4161 | F22: 2957 | G22: 2604 | H22: 2097
A23: 32 | B23: 32 | D23: 5403 | E23: 4287 | F23: 3003 | G23: 2659 | H23: 2165
A24: 33 | B24: 33 | D24: 5511 | E24: 4382 | F24: 3083 | G24: 2713 | H24: 2218
A25: 34 | B25: 34 | D25: 5628 | E25: 4475 | F25: 3152 | G25: 2760 | H25: 2267
A26: 35 | B26: 35 | D26: 5737 | E26: 4567 | F26: 3232 | G26: 2818 | H26: 2321
A27: 36 | B27: 36 | D27: 5848 | E27: 4661 | F27: 3306 | G27: 2870 | H27: 2372
A28: 37 | B28: 37 | D28: 5967 | E28: 4753 | F28: 3383 | G28: 2928 | H28: 2422
A29: 38 | B29: 38 | D29: 6072 | E29: 4861 | F29: 3437 | G29: 2981 | H29: 2469
A30: 39 | B30: 39 | D30: 6184 | E30: 4965 | F30: 3497 | G30: 3039 | H30: 2522
A31: 40 | B31: 40 | D31: 6299 | E31: 5068 | F31: 3553 | G31: 3097 | H31: 2573
A32: 41 | B32: 41 | D32: 6406 | E32: 5174 | F32: 3612 | G32: 3150 | H32: 2619
A33: 42 | B33: 42 | D33: 6517 | E33: 5279 | F33: 3670 | G33: 3210 | H33: 2666
A34: 43 | B34: 43 | D34: 6747 | E34: 5485 | F34: 3804 | G34: 3330 | H34: 2760
A35: 44 | B35: 44 | D35: 6971 | E35: 5687 | F35: 3943 | G35: 3446 | H35: 2865
A36: 45 | B36: 45 | D36: 7198 | E36: 5895 | F36: 4081 | G36: 3564 | H36: 2961
A37: 46 | B37: 46 | D37: 7429 | E37: 6101 | F37: 4222 | G37: 3681 | H37: 3061
A38: 47 | B38: 47 | D38: 7656 | E38: 6306 | F38: 4353 | G38: 3801 | H38: 3161
A39: 48 | B39: 48 | D39: 7872 | E39: 6419 | F39: 4483 | G39: 3913 | H39: 3215
A40: 49 | B40: 49 | D40: 8092 | E40: 6536 | F40: 4603 | G40: 4026 | H40: 3274
A41: 50 | B41: 50 | D41: 8311 | E41: 6650 | F41: 4728 | G41: 4134 | H41: 3330
A42: 51 | B42: 51 | D42: 8528 | E42: 6764 | F42: 4850 | G42: 4241 | H42: 3384
A43: 52 | B43: 52 | D43: 8744 | E43: 6874 | F43: 4974 | G43: 4349 | H43: 3438
A44: 53 | B44: 53 | D44: 9052 | E44: 7146 | F44: 5158 | G44: 4512 | H44: 3565
A45: 54 | B45: 54 | D45: 9359 | E45: 7407 | F45: 5345 | G45: 4670 | H45: 3694
A46: 55 | B46: 55 | D46: 9668 | E46: 7674 | F46: 5528 | G46: 4833 | H46: 3819
A47: 56 | B47: 56 | D47: 9982 | E47: 7942 | F47: 5710 | G47: 4989 | H47: 3943
A48: 57 | B48: 57 | D48: 10285 | E48: 8210 | F48: 5895 | G48: 5154 | H48: 4074
A49: 58 | B49: 58 | D49: 10826 | E49: 8760 | F49: 6279 | G49: 5500 | H49: 4367
A50: 59 | B50: 59 | D50: 11372 | E50: 9313 | F50: 6660 | G50: 5846 | H50: 4666
A51: 60 | B51: 60 | D51: 11916 | E51: 9864 | F51: 7043 | G51: 6192 | H51: 4972
A52: 61 | B52: 61 | D52: 12570 | E52: 10439 | F52: 7445 | G52: 6561 | H52: 5271
A53: 62 | B53: 62 | D53: 13290 | E53: 11031 | F53: 7852 | G53: 6939 | H53: 5579
A54: 63 | B54: 63 | D54: 14007 | E54: 11652 | F54: 8267 | G54: 7322 | H54: 5893
A55: 64 | B55: 64 | D55: 14764 | E55: 12319 | F55: 8714 | G55: 7712 | H55: 6202
A56: 65 | B56: 65 | D56: 15565 | E56: 13010 | F56: 9296 | G56: 8117 | H56: 6517
A57: 66 | B57: 66 | D57: 16561 | E57: 13802 | F57: 9955 | G57: 8685 | H57: 6908
A58: 67 | B58: 67 | D58: 17885 | E58: 14904 | F58: 10761 | G58: 9355 | H58: 7465
A59: 68 | B59: 68 | D59: 19389 | E59: 16168 | F59: 11663 | G59: 10147 | H59: 8097
A60: 69 | B60: 69 | D60: 21170 | E60: 17648 | F60: 12737 | G60: 11074 | H60: 8837
A61: 70 | B61: 70 | D61: 23210 | E61: 19641 | F61: 13891 | G61: 12202 | H61: 9721
A62: 71 | B62: 71 | D62: 25560 | E62: 21640 | F62: 15384 | G62: 13440 | H62: 10714
A63: 72 | B63: 72 | D63: 28273 | E63: 23930 | F63: 17020 | G63: 14877 | H63: 11858
A64: 73 | B64: 73 | D64: 31394 | E64: 26553 | F64: 18896 | G64: 16513 | H64: 13165
A65: 74 | B65: 74 | D65: 34999 | E65: 29608 | F65: 21072 | G65: 18354 | H65: 14679
A66: 75 | B66: 75 | D66: 39072 | E66: 34408 | F66: 24311 | G66: 21051 | H66: 16302
A67: 76 | B67: 76 | D67: 46180 | E67: 40654 | F67: 28223 | G67: 24332 | H67: 18812
A68: 77 | B68: 77 | D68: 53456 | E68: 47043 | F68: 32962 | G68: 28416 | H68: 21569
A69: 78 | B69: 78 | D69: 62160 | E69: 53720 | F69: 38115 | G69: 32860 | H69: 24702
A70: 79 | B70: 79 | D70: 71036 | E70: 60979 | F70: 44498 | G70: 38363 | H70: 28217
A71: 80+ | B71: 80+ | D71: 80987 | E71: 69691 | F71: 51299 | G71: 44223 | H71: 31851
A72: 1 | B72: 1 Child | D72: 1609 | E72: 1328 | F72: 933 | G72: 811 | H72: 687
A73: 2 | B73: 2 Children | D73: 2708 | E73: 1976 | F73: 1481 | G73: 1276 | H73: 1095
A74: 3 | B74: 3+ Children | D74: 3980 | E74: 2839 | F74: 2142 | G74: 1855 | H74: 1581
A75: 1 | B75: Rider Comp. Maternidad | D75: 225 | E75: 225 | F75: 225 | G75: 225 | H75: 225
A76: 1 | B76: Transplante de organos | D76: 300 | E76: 300 | F76: 300 | G76: 300 | H76: 300

Sheet CostaRica 3 (hidden)
K1: D1 | L1: D2 | M1: D3 | N1: D4 | O1: D5 | P1: D6
B2: REGIÓN | C2: ='INGRESO DE DATOS'!W22 -> Bolivia | E2: FACTOR SEMESTRAL : | G2: 0.53 | I2: NEW BUSINESS DISCUOUNTS | K2: ='INGRESO DE DATOS'!O42 -> 1 | L2: ='INGRESO DE DATOS'!P42 -> 1 | M2: ='INGRESO DE DATOS'!Q42 -> 1 | N2: ='INGRESO DE DATOS'!R42 -> 1 | O2: ='INGRESO DE DATOS'!S42 -> 1 | P2: ='INGRESO DE DATOS'!T42 -> 1
A5: BUPA ALPHA
A6: TARIFAS ANUALES
A8: EDAD | C8: DW1 | D8: DW2 | E8: DW3 | F8: DW4 | G8: DW5 | H8: DW6 | I8: DW7
A9: 18 | B9: 18 | D9: 4685 | E9: 3635 | F9: 2804 | G9: 2426 | H9: 1855
A10: 19 | B10: 19 | D10: 4813 | E10: 3744 | F10: 2883 | G10: 2497 | H10: 1909
A11: 20 | B11: 20 | D11: 4936 | E11: 3861 | F11: 2968 | G11: 2573 | H11: 1959
A12: 21 | B12: 21 | D12: 5070 | E12: 3976 | F12: 3052 | G12: 2645 | H12: 2015
A13: 22 | B13: 22 | D13: 5206 | E13: 4100 | F13: 3141 | G13: 2719 | H13: 2075
A14: 23 | B14: 23 | D14: 5335 | E14: 4223 | F14: 3225 | G14: 2799 | H14: 2126
A15: 24 | B15: 24 | D15: 5473 | E15: 4343 | F15: 3318 | G15: 2877 | H15: 2179
A16: 25 | B16: 25 | D16: 5603 | E16: 4468 | F16: 3409 | G16: 2948 | H16: 2233
A17: 26 | B17: 26 | D17: 5740 | E17: 4590 | F17: 3490 | G17: 3028 | H17: 2295
A18: 27 | B18: 27 | D18: 5872 | E18: 4711 | F18: 3581 | G18: 3104 | H18: 2348
A19: 28 | B19: 28 | D19: 6094 | E19: 4871 | F19: 3642 | G19: 3167 | H19: 2438
A20: 29 | B20: 29 | D20: 6312 | E20: 5029 | F20: 3700 | G20: 3231 | H20: 2523
A21: 30 | B21: 30 | D21: 6523 | E21: 5197 | F21: 3755 | G21: 3296 | H21: 2607
A22: 31 | B22: 31 | D22: 6744 | E22: 5362 | F22: 3814 | G22: 3357 | H22: 2694
A23: 32 | B23: 32 | D23: 6961 | E23: 5522 | F23: 3878 | G23: 3422 | H23: 2778
A24: 33 | B24: 33 | D24: 7105 | E24: 5637 | F24: 3970 | G24: 3489 | H24: 2851
A25: 34 | B25: 34 | D25: 7254 | E25: 5760 | F25: 4069 | G25: 3556 | H25: 2917
A26: 35 | B26: 35 | D26: 7395 | E26: 5888 | F26: 4168 | G26: 3628 | H26: 2986
A27: 36 | B27: 36 | D27: 7539 | E27: 6012 | F27: 4261 | G27: 3694 | H27: 3046
A28: 37 | B28: 37 | D28: 7681 | E28: 6127 | F28: 4362 | G28: 3760 | H28: 3116
A29: 38 | B29: 38 | D29: 7830 | E29: 6262 | F29: 4433 | G29: 3836 | H29: 3182
A30: 39 | B30: 39 | D30: 7972 | E30: 6390 | F30: 4504 | G30: 3910 | H30: 3244
A31: 40 | B31: 40 | D31: 8114 | E31: 6523 | F31: 4579 | G31: 3982 | H31: 3308
A32: 41 | B32: 41 | D32: 8252 | E32: 6659 | F32: 4655 | G32: 4062 | H32: 3369
A33: 42 | B33: 42 | D33: 8394 | E33: 6792 | F33: 4727 | G33: 4133 | H33: 3434
A34: 43 | B34: 43 | D34: 8689 | E34: 7058 | F34: 4906 | G34: 4282 | H34: 3560
A35: 44 | B35: 44 | D35: 8978 | E35: 7323 | F35: 5083 | G35: 4440 | H35: 3689
A36: 45 | B36: 45 | D36: 9283 | E36: 7587 | F36: 5258 | G36: 4591 | H36: 3812
A37: 46 | B37: 46 | D37: 9572 | E37: 7854 | F37: 5436 | G37: 4744 | H37: 3943
A38: 47 | B38: 47 | D38: 9867 | E38: 8118 | F38: 5614 | G38: 4896 | H38: 4069
A39: 48 | B39: 48 | D39: 10150 | E39: 8267 | F39: 5772 | G39: 5042 | H39: 4139
A40: 49 | B40: 49 | D40: 10432 | E40: 8417 | F40: 5934 | G40: 5174 | H40: 4209
A41: 50 | B41: 50 | D41: 10712 | E41: 8563 | F41: 6094 | G41: 5320 | H41: 4281
A42: 51 | B42: 51 | D42: 10992 | E42: 8705 | F42: 6251 | G42: 5457 | H42: 4354
A43: 52 | B43: 52 | D43: 11279 | E43: 8854 | F43: 6411 | G43: 5602 | H43: 4428
A44: 53 | B44: 53 | D44: 11673 | E44: 9198 | F44: 6649 | G44: 5805 | H44: 4590
A45: 54 | B45: 54 | D45: 12067 | E45: 9546 | F45: 6885 | G45: 6013 | H45: 4752
A46: 55 | B46: 55 | D46: 12464 | E46: 9890 | F46: 7125 | G46: 6220 | H46: 4918
A47: 56 | B47: 56 | D47: 12859 | E47: 10235 | F47: 7361 | G47: 6426 | H47: 5076
A48: 57 | B48: 57 | D48: 13252 | E48: 10583 | F48: 7601 | G48: 6632 | H48: 5242
A49: 58 | B49: 58 | D49: 13950 | E49: 11288 | F49: 8088 | G49: 7082 | H49: 5627
A50: 59 | B50: 59 | D50: 14648 | E50: 11997 | F50: 8580 | G50: 7534 | H50: 6013
A51: 60 | B51: 60 | D51: 15348 | E51: 12707 | F51: 9071 | G51: 7979 | H51: 6400
A52: 61 | B52: 61 | D52: 16201 | E52: 13451 | F52: 9588 | G52: 8445 | H52: 6796
A53: 62 | B53: 62 | D53: 17117 | E53: 14211 | F53: 10112 | G53: 8941 | H53: 7192
A54: 63 | B54: 63 | D54: 18046 | E54: 15012 | F54: 10654 | G54: 9432 | H54: 7582
A55: 64 | B55: 64 | D55: 19028 | E55: 15873 | F55: 11235 | G55: 9936 | H55: 7987
A56: 65 | B56: 65 | D56: 20045 | E56: 16762 | F56: 11971 | G56: 10451 | H56: 8394
A57: 66 | B57: 66 | D57: 21325 | E57: 17777 | F57: 12824 | G57: 11192 | H57: 8899
A58: 67 | B58: 67 | D58: 23037 | E58: 19211 | F58: 13858 | G58: 12053 | H58: 9618
A59: 68 | B59: 68 | D59: 24979 | E59: 20832 | F59: 15028 | G59: 13068 | H59: 10427
A60: 69 | B60: 69 | D60: 27269 | E60: 22738 | F60: 16407 | G60: 14275 | H60: 11390
A61: 70 | B61: 70 | D61: 29900 | E61: 25301 | F61: 17892 | G61: 15720 | H61: 12525
A62: 71 | B62: 71 | D62: 32926 | E62: 27875 | F62: 19816 | G62: 17320 | H62: 13794
A63: 72 | B63: 72 | D63: 36428 | E63: 30820 | F63: 21922 | G63: 19163 | H63: 15273
A64: 73 | B64: 73 | D64: 40434 | E64: 34209 | F64: 24338 | G64: 21269 | H64: 16960
A65: 74 | B65: 74 | D65: 45095 | E65: 38141 | F65: 27140 | G65: 23646 | H65: 18909
A66: 75 | B66: 75 | D66: 50338 | E66: 44333 | F66: 31317 | G66: 27124 | H66: 20998
A67: 76 | B67: 76 | D67: 59496 | E67: 52378 | F67: 36355 | G67: 31358 | H67: 24226
A68: 77 | B68: 77 | D68: 68873 | E68: 60606 | F68: 42462 | G68: 36622 | H68: 27782
A69: 78 | B69: 78 | D69: 80083 | E69: 69211 | F69: 49091 | G69: 42340 | H69: 31825
A70: 79 | B70: 79 | D70: 91524 | E70: 78563 | F70: 57320 | G70: 49438 | H70: 36348
A71: 80+ | B71: 80+ | D71: 104336 | E71: 89792 | F71: 66076 | G71: 56995 | H71: 41026
A72: 1 | B72: 1 Child | D72: 2075 | E72: 1713 | F72: 1212 | G72: 1039 | H72: 891
A73: 2 | B73: 2 Children | D73: 3489 | E73: 2547 | F73: 1898 | G73: 1636 | H73: 1413
A74: 3 | B74: 3+ Children | D74: 5122 | E74: 3665 | F74: 2759 | G74: 2380 | H74: 2043
A75: 1 | B75: Rider Comp. Maternidad | D75: 225 | E75: 225 | F75: 225 | G75: 225 | H75: 225
A76: 1 | B76: Transplante de organos | D76: 300 | E76: 300 | F76: 300 | G76: 300 | H76: 300

Sheet ElSalvador 3 (hidden)
P1: D6
B2: REGIÓN | C2: ='INGRESO DE DATOS'!W22 -> Bolivia | E2: FACTOR SEMESTRAL : | G2: 0.53 | I2: NEW BUSINESS DISCUOUNTS | P2: ='INGRESO DE DATOS'!T42 -> 1
A5: BUPA ALPHA
A6: TARIFAS ANUALES
A8: EDAD | C8: DW1 | D8: DW2 | E8: DW3 | F8: DW4 | G8: DW5 | H8: DW6 | I8: DW7
A9: 18 | B9: 18 | D9: 4685 | E9: 3635 | F9: 2804 | G9: 2426 | H9: 1855
A10: 19 | B10: 19 | D10: 4813 | E10: 3744 | F10: 2883 | G10: 2497 | H10: 1909
A11: 20 | B11: 20 | D11: 4936 | E11: 3861 | F11: 2968 | G11: 2573 | H11: 1959
A12: 21 | B12: 21 | D12: 5070 | E12: 3976 | F12: 3052 | G12: 2645 | H12: 2015
A13: 22 | B13: 22 | D13: 5206 | E13: 4100 | F13: 3141 | G13: 2719 | H13: 2075
A14: 23 | B14: 23 | D14: 5335 | E14: 4223 | F14: 3225 | G14: 2799 | H14: 2126
A15: 24 | B15: 24 | D15: 5473 | E15: 4343 | F15: 3318 | G15: 2877 | H15: 2179
A16: 25 | B16: 25 | D16: 5603 | E16: 4468 | F16: 3409 | G16: 2948 | H16: 2233
A17: 26 | B17: 26 | D17: 5740 | E17: 4590 | F17: 3490 | G17: 3028 | H17: 2295
A18: 27 | B18: 27 | D18: 5872 | E18: 4711 | F18: 3581 | G18: 3104 | H18: 2348
A19: 28 | B19: 28 | D19: 6094 | E19: 4871 | F19: 3642 | G19: 3167 | H19: 2438
A20: 29 | B20: 29 | D20: 6312 | E20: 5029 | F20: 3700 | G20: 3231 | H20: 2523
A21: 30 | B21: 30 | D21: 6523 | E21: 5197 | F21: 3755 | G21: 3296 | H21: 2607
A22: 31 | B22: 31 | D22: 6744 | E22: 5362 | F22: 3814 | G22: 3357 | H22: 2694
A23: 32 | B23: 32 | D23: 6961 | E23: 5522 | F23: 3878 | G23: 3422 | H23: 2778
A24: 33 | B24: 33 | D24: 7105 | E24: 5637 | F24: 3970 | G24: 3489 | H24: 2851
A25: 34 | B25: 34 | D25: 7254 | E25: 5760 | F25: 4069 | G25: 3556 | H25: 2917
A26: 35 | B26: 35 | D26: 7395 | E26: 5888 | F26: 4168 | G26: 3628 | H26: 2986
A27: 36 | B27: 36 | D27: 7539 | E27: 6012 | F27: 4261 | G27: 3694 | H27: 3046
A28: 37 | B28: 37 | D28: 7681 | E28: 6127 | F28: 4362 | G28: 3760 | H28: 3116
A29: 38 | B29: 38 | D29: 7830 | E29: 6262 | F29: 4433 | G29: 3836 | H29: 3182
A30: 39 | B30: 39 | D30: 7972 | E30: 6390 | F30: 4504 | G30: 3910 | H30: 3244
A31: 40 | B31: 40 | D31: 8114 | E31: 6523 | F31: 4579 | G31: 3982 | H31: 3308
A32: 41 | B32: 41 | D32: 8252 | E32: 6659 | F32: 4655 | G32: 4062 | H32: 3369
A33: 42 | B33: 42 | D33: 8394 | E33: 6792 | F33: 4727 | G33: 4133 | H33: 3434
A34: 43 | B34: 43 | D34: 8689 | E34: 7058 | F34: 4906 | G34: 4282 | H34: 3560
A35: 44 | B35: 44 | D35: 8978 | E35: 7323 | F35: 5083 | G35: 4440 | H35: 3689
A36: 45 | B36: 45 | D36: 9283 | E36: 7587 | F36: 5258 | G36: 4591 | H36: 3812
A37: 46 | B37: 46 | D37: 9572 | E37: 7854 | F37: 5436 | G37: 4744 | H37: 3943
A38: 47 | B38: 47 | D38: 9867 | E38: 8118 | F38: 5614 | G38: 4896 | H38: 4069
A39: 48 | B39: 48 | D39: 10150 | E39: 8267 | F39: 5772 | G39: 5042 | H39: 4139
A40: 49 | B40: 49 | D40: 10432 | E40: 8417 | F40: 5934 | G40: 5174 | H40: 4209
A41: 50 | B41: 50 | D41: 10712 | E41: 8563 | F41: 6094 | G41: 5320 | H41: 4281
A42: 51 | B42: 51 | D42: 10992 | E42: 8705 | F42: 6251 | G42: 5457 | H42: 4354
A43: 52 | B43: 52 | D43: 11279 | E43: 8854 | F43: 6411 | G43: 5602 | H43: 4428
A44: 53 | B44: 53 | D44: 11673 | E44: 9198 | F44: 6649 | G44: 5805 | H44: 4590
A45: 54 | B45: 54 | D45: 12067 | E45: 9546 | F45: 6885 | G45: 6013 | H45: 4752
A46: 55 | B46: 55 | D46: 12464 | E46: 9890 | F46: 7125 | G46: 6220 | H46: 4918
A47: 56 | B47: 56 | D47: 12859 | E47: 10235 | F47: 7361 | G47: 6426 | H47: 5076
A48: 57 | B48: 57 | D48: 13252 | E48: 10583 | F48: 7601 | G48: 6632 | H48: 5242
A49: 58 | B49: 58 | D49: 13950 | E49: 11288 | F49: 8088 | G49: 7082 | H49: 5627
A50: 59 | B50: 59 | D50: 14648 | E50: 11997 | F50: 8580 | G50: 7534 | H50: 6013
A51: 60 | B51: 60 | D51: 15348 | E51: 12707 | F51: 9071 | G51: 7979 | H51: 6400
A52: 61 | B52: 61 | D52: 16201 | E52: 13451 | F52: 9588 | G52: 8445 | H52: 6796
A53: 62 | B53: 62 | D53: 17117 | E53: 14211 | F53: 10112 | G53: 8941 | H53: 7192
A54: 63 | B54: 63 | D54: 18046 | E54: 15012 | F54: 10654 | G54: 9432 | H54: 7582
A55: 64 | B55: 64 | D55: 19028 | E55: 15873 | F55: 11235 | G55: 9936 | H55: 7987
A56: 65 | B56: 65 | D56: 20045 | E56: 16762 | F56: 11971 | G56: 10451 | H56: 8394
A57: 66 | B57: 66 | D57: 21325 | E57: 17777 | F57: 12824 | G57: 11192 | H57: 8899
A58: 67 | B58: 67 | D58: 23037 | E58: 19211 | F58: 13858 | G58: 12053 | H58: 9618
A59: 68 | B59: 68 | D59: 24979 | E59: 20832 | F59: 15028 | G59: 13068 | H59: 10427
A60: 69 | B60: 69 | D60: 27269 | E60: 22738 | F60: 16407 | G60: 14275 | H60: 11390
A61: 70 | B61: 70 | D61: 29900 | E61: 25301 | F61: 17892 | G61: 15720 | H61: 12525
A62: 71 | B62: 71 | D62: 32926 | E62: 27875 | F62: 19816 | G62: 17320 | H62: 13794
A63: 72 | B63: 72 | D63: 36428 | E63: 30820 | F63: 21922 | G63: 19163 | H63: 15273
A64: 73 | B64: 73 | D64: 40434 | E64: 34209 | F64: 24338 | G64: 21269 | H64: 16960
A65: 74 | B65: 74 | D65: 45095 | E65: 38141 | F65: 27140 | G65: 23646 | H65: 18909
A66: 75 | B66: 75 | D66: 50338 | E66: 44333 | F66: 31317 | G66: 27124 | H66: 20998
A67: 76 | B67: 76 | D67: 59496 | E67: 52378 | F67: 36355 | G67: 31358 | H67: 24226
A68: 77 | B68: 77 | D68: 68873 | E68: 60606 | F68: 42462 | G68: 36622 | H68: 27782
A69: 78 | B69: 78 | D69: 80083 | E69: 69211 | F69: 49091 | G69: 42340 | H69: 31825
A70: 79 | B70: 79 | D70: 91524 | E70: 78563 | F70: 57320 | G70: 49438 | H70: 36348
A71: 80+ | B71: 80+ | D71: 104336 | E71: 89792 | F71: 66076 | G71: 56995 | H71: 41026
A72: 1 | B72: 1 Child | D72: 2075 | E72: 1713 | F72: 1212 | G72: 1039 | H72: 891
A73: 2 | B73: 2 Children | D73: 3489 | E73: 2547 | F73: 1898 | G73: 1636 | H73: 1413
A74: 3 | B74: 3+ Children | D74: 5122 | E74: 3665 | F74: 2759 | G74: 2380 | H74: 2043
A75: 1 | B75: Rider Comp. Maternidad | D75: 225 | E75: 225 | F75: 225 | G75: 225 | H75: 225
A76: 1 | B76: Transplante de organos | D76: 300 | E76: 300 | F76: 300 | G76: 300 | H76: 300

Sheet Guyana 4 (hidden)
B2: REGIÓN | C2: ='INGRESO DE DATOS'!W22 -> Bolivia | E2: FACTOR SEMESTRAL : | G2: 0.53 | I2: NEW BUSINESS DISCUOUNTS
A5: BUPA ALPHA
A6: TARIFAS ANUALES
A8: EDAD | C8: DW1 | D8: DW2 | E8: DW3 | F8: DW4 | G8: DW5 | H8: DW6 | I8: DW7
A9: 18 | B9: 18 | D9: 4454 | E9: 3450 | F9: 2668 | G9: 2311 | H9: 1759
A10: 19 | B10: 19 | D10: 4575 | E10: 3559 | F10: 2743 | G10: 2377 | H10: 1806
A11: 20 | B11: 20 | D11: 4699 | E11: 3667 | F11: 2824 | G11: 2449 | H11: 1860
A12: 21 | B12: 21 | D12: 4821 | E12: 3785 | F12: 2906 | G12: 2514 | H12: 1910
A13: 22 | B13: 22 | D13: 4951 | E13: 3900 | F13: 2990 | G13: 2587 | H13: 1969
A14: 23 | B14: 23 | D14: 5076 | E14: 4019 | F14: 3067 | G14: 2662 | H14: 2018
A15: 24 | B15: 24 | D15: 5206 | E15: 4133 | F15: 3152 | G15: 2732 | H15: 2076
A16: 25 | B16: 25 | D16: 5338 | E16: 4254 | F16: 3241 | G16: 2802 | H16: 2127
A17: 26 | B17: 26 | D17: 5463 | E17: 4368 | F17: 3320 | G17: 2874 | H17: 2180
A18: 27 | B18: 27 | D18: 5594 | E18: 4488 | F18: 3406 | G18: 2948 | H18: 2234
A19: 28 | B19: 28 | D19: 5801 | E19: 4637 | F19: 3459 | G19: 3007 | H19: 2317
A20: 29 | B20: 29 | D20: 6005 | E20: 4791 | F20: 3518 | G20: 3066 | H20: 2401
A21: 30 | B21: 30 | D21: 6215 | E21: 4940 | F21: 3570 | G21: 3128 | H21: 2485
A22: 31 | B22: 31 | D22: 6415 | E22: 5096 | F22: 3627 | G22: 3195 | H22: 2569
A23: 32 | B23: 32 | D23: 6626 | E23: 5251 | F23: 3682 | G23: 3248 | H23: 2648
A24: 33 | B24: 33 | D24: 6763 | E24: 5362 | F24: 3775 | G24: 3320 | H24: 2714
A25: 34 | B25: 34 | D25: 6897 | E25: 5477 | F25: 3867 | G25: 3386 | H25: 2778
A26: 35 | B26: 35 | D26: 7033 | E26: 5592 | F26: 3957 | G26: 3450 | H26: 2839
A27: 36 | B27: 36 | D27: 7170 | E27: 5701 | F27: 4048 | G27: 3518 | H27: 2905
A28: 37 | B28: 37 | D28: 7303 | E28: 5820 | F28: 4146 | G28: 3584 | H28: 2966
A29: 38 | B29: 38 | D29: 7441 | E29: 5943 | F29: 4213 | G29: 3652 | H29: 3029
A30: 39 | B30: 39 | D30: 7580 | E30: 6076 | F30: 4281 | G30: 3726 | H30: 3085
A31: 40 | B31: 40 | D31: 7711 | E31: 6201 | F31: 4352 | G31: 3788 | H31: 3148
A32: 41 | B32: 41 | D32: 7847 | E32: 6323 | F32: 4421 | G32: 3860 | H32: 3206
A33: 42 | B33: 42 | D33: 7982 | E33: 6454 | F33: 4491 | G33: 3929 | H33: 3265
A34: 43 | B34: 43 | D34: 8263 | E34: 6710 | F34: 4661 | G34: 4074 | H34: 3386
A35: 44 | B35: 44 | D35: 8537 | E35: 6961 | F35: 4825 | G35: 4218 | H35: 3507
A36: 45 | B36: 45 | D36: 8816 | E36: 7217 | F36: 4998 | G36: 4365 | H36: 3627
A37: 46 | B37: 46 | D37: 9096 | E37: 7470 | F37: 5163 | G37: 4506 | H37: 3748
A38: 47 | B38: 47 | D38: 9373 | E38: 7724 | F38: 5337 | G38: 4653 | H38: 3867
A39: 48 | B39: 48 | D39: 9643 | E39: 7866 | F39: 5485 | G39: 4788 | H39: 3980
A40: 49 | B40: 49 | D40: 9911 | E40: 8001 | F40: 5636 | G40: 4915 | H40: 4088
A41: 50 | B41: 50 | D41: 10180 | E41: 8141 | F41: 5786 | G41: 5060 | H41: 4206
A42: 51 | B42: 51 | D42: 10448 | E42: 8276 | F42: 5934 | G42: 5187 | H42: 4318
A43: 52 | B43: 52 | D43: 10716 | E43: 8420 | F43: 6090 | G43: 5319 | H43: 4429
A44: 53 | B44: 53 | D44: 11092 | E44: 8742 | F44: 6318 | G44: 5520 | H44: 4590
A45: 54 | B45: 54 | D45: 11466 | E45: 9071 | F45: 6540 | G45: 5715 | H45: 4759
A46: 55 | B46: 55 | D46: 11839 | E46: 9397 | F46: 6772 | G46: 5913 | H46: 4914
A47: 56 | B47: 56 | D47: 12215 | E47: 9720 | F47: 6992 | G47: 6111 | H47: 5076
A48: 57 | B48: 57 | D48: 12588 | E48: 10045 | F48: 7218 | G48: 6312 | H48: 5241
A49: 58 | B49: 58 | D49: 13259 | E49: 10724 | F49: 7688 | G49: 6734 | H49: 5621
A50: 59 | B50: 59 | D50: 13927 | E50: 11404 | F50: 8153 | G50: 7157 | H50: 5997
A51: 60 | B51: 60 | D51: 14594 | E51: 12081 | F51: 8619 | G51: 7588 | H51: 6376
A52: 61 | B52: 61 | D52: 15406 | E52: 12781 | F52: 9113 | G52: 8035 | H52: 6763
A53: 62 | B53: 62 | D53: 16281 | E53: 13501 | F53: 9610 | G53: 8501 | H53: 7152
A54: 63 | B54: 63 | D54: 17158 | E54: 14265 | F54: 10124 | G54: 8962 | H54: 7549
A55: 64 | B55: 64 | D55: 18094 | E55: 15078 | F55: 10673 | G55: 9441 | H55: 7949
A56: 65 | B56: 65 | D56: 19056 | E56: 15929 | F56: 11381 | G56: 9934 | H56: 8350
A57: 66 | B57: 66 | D57: 20278 | E57: 16900 | F57: 12187 | G57: 10633 | H57: 8859
A58: 67 | B58: 67 | D58: 21904 | E58: 18253 | F58: 13167 | G58: 11455 | H58: 9568
A59: 68 | B59: 68 | D59: 23746 | E59: 19780 | F59: 14277 | G59: 12426 | H59: 10390
A60: 69 | B60: 69 | D60: 25933 | E60: 21600 | F60: 15595 | G60: 13558 | H60: 11346
A61: 70 | B61: 70 | D61: 28422 | E61: 24035 | F61: 17001 | G61: 14941 | H61: 12471
A62: 71 | B62: 71 | D62: 31298 | E62: 26488 | F62: 18824 | G62: 16453 | H62: 13742
A63: 72 | B63: 72 | D63: 34635 | E63: 29292 | F63: 20839 | G63: 18209 | H63: 15211
A64: 73 | B64: 73 | D64: 38442 | E64: 32500 | F64: 23125 | G64: 20216 | H64: 16883
A65: 74 | B65: 74 | D65: 42861 | E65: 36243 | F65: 25792 | G65: 22471 | H65: 18828
A66: 75 | B66: 75 | D66: 47854 | E66: 42120 | F66: 29750 | G66: 25771 | H66: 21011
A67: 76 | B67: 76 | D67: 56549 | E67: 49765 | F67: 34541 | G67: 29797 | H67: 24241
A68: 77 | B68: 77 | D68: 65468 | E68: 57582 | F68: 40342 | G68: 34799 | H68: 27794
A69: 78 | B69: 78 | D69: 76128 | E69: 65758 | F69: 46642 | G69: 40234 | H69: 31838
A70: 79 | B70: 79 | D70: 87003 | E70: 74641 | F70: 54460 | G70: 46977 | H70: 36359
A71: 80+ | B71: 80+ | D71: 99182 | E71: 85303 | F71: 62778 | G71: 54151 | H71: 41050
A72: 1 | B72: 1 Child | D72: 1971 | E72: 1624 | F72: 1148 | G72: 988 | H72: 843
A73: 2 | B73: 2 Children | D73: 3317 | E73: 2430 | F73: 1806 | G73: 1561 | H73: 1341
A74: 3 | B74: 3+ Children | D74: 4867 | E74: 3487 | F74: 2621 | G74: 2258 | H74: 1934
A75: 1 | B75: Rider Comp. Maternidad | D75: 225 | E75: 225 | F75: 225 | G75: 225 | H75: 225
A76: 1 | B76: Transplante de organos | D76: 300 | E76: 300 | F76: 300 | G76: 300 | H76: 300

Sheet Haiti 2 (hidden)
K1: D1 | L1: D2 | M1: D3 | N1: D4 | O1: D5 | P1: D6
B2: REGIÓN | C2: ='INGRESO DE DATOS'!W22 -> Bolivia | E2: FACTOR SEMESTRAL : | G2: 0.53 | I2: NEW BUSINESS DISCUOUNTS | K2: ='INGRESO DE DATOS'!O42 -> 1 | L2: ='INGRESO DE DATOS'!P42 -> 1 | M2: ='INGRESO DE DATOS'!Q42 -> 1 | N2: ='INGRESO DE DATOS'!R42 -> 1 | O2: ='INGRESO DE DATOS'!S42 -> 1 | P2: ='INGRESO DE DATOS'!T42 -> 1
A5: BUPA ALPHA
A6: TARIFAS ANUALES
A8: EDAD | C8: DW1 | D8: DW2 | E8: DW3 | F8: DW4 | G8: DW5 | H8: DW6 | I8: DW7
A9: 18 | B9: 18 | D9: 4223 | E9: 3272 | F9: 2533 | G9: 2187 | H9: 1669
A10: 19 | B10: 19 | D10: 4334 | E10: 3380 | F10: 2606 | G10: 2251 | H10: 1715
A11: 20 | B11: 20 | D11: 4450 | E11: 3477 | F11: 2681 | G11: 2317 | H11: 1764
A12: 21 | B12: 21 | D12: 4569 | E12: 3584 | F12: 2753 | G12: 2377 | H12: 1810
A13: 22 | B13: 22 | D13: 4693 | E13: 3695 | F13: 2832 | G13: 2450 | H13: 1860
A14: 23 | B14: 23 | D14: 4813 | E14: 3812 | F14: 2908 | G14: 2513 | H14: 1910
A15: 24 | B15: 24 | D15: 4933 | E15: 3912 | F15: 2991 | G15: 2583 | H15: 1958
A16: 25 | B16: 25 | D16: 5054 | E16: 4025 | F16: 3063 | G16: 2653 | H16: 2009
A17: 26 | B17: 26 | D17: 5175 | E17: 4136 | F17: 3145 | G17: 2718 | H17: 2057
A18: 27 | B18: 27 | D18: 5300 | E18: 4245 | F18: 3218 | G18: 2787 | H18: 2111
A19: 28 | B19: 28 | D19: 5492 | E19: 4393 | F19: 3272 | G19: 2845 | H19: 2190
A20: 29 | B20: 29 | D20: 5688 | E20: 4538 | F20: 3327 | G20: 2906 | H20: 2267
A21: 30 | B21: 30 | D21: 5882 | E21: 4680 | F21: 3381 | G21: 2960 | H21: 2348
A22: 31 | B22: 31 | D22: 6072 | E22: 4830 | F22: 3428 | G22: 3019 | H22: 2424
A23: 32 | B23: 32 | D23: 6268 | E23: 4976 | F23: 3487 | G23: 3076 | H23: 2509
A24: 33 | B24: 33 | D24: 6398 | E24: 5084 | F24: 3572 | G24: 3138 | H24: 2568
A25: 34 | B25: 34 | D25: 6529 | E25: 5192 | F25: 3657 | G25: 3207 | H25: 2630
A26: 35 | B26: 35 | D26: 6658 | E26: 5301 | F26: 3749 | G26: 3264 | H26: 2692
A27: 36 | B27: 36 | D27: 6788 | E27: 5412 | F27: 3835 | G27: 3329 | H27: 2753
A28: 37 | B28: 37 | D28: 6922 | E28: 5522 | F28: 3916 | G28: 3391 | H28: 2814
A29: 38 | B29: 38 | D29: 7048 | E29: 5642 | F29: 3990 | G29: 3457 | H29: 2868
A30: 39 | B30: 39 | D30: 7179 | E30: 5760 | F30: 4054 | G30: 3521 | H30: 2926
A31: 40 | B31: 40 | D31: 7311 | E31: 5882 | F31: 4122 | G31: 3584 | H31: 2977
A32: 41 | B32: 41 | D32: 7436 | E32: 5996 | F32: 4188 | G32: 3652 | H32: 3038
A33: 42 | B33: 42 | D33: 7567 | E33: 6121 | F33: 4256 | G33: 3716 | H33: 3088
A34: 43 | B34: 43 | D34: 7832 | E34: 6360 | F34: 4417 | G34: 3853 | H34: 3208
A35: 44 | B35: 44 | D35: 8094 | E35: 6598 | F35: 4578 | G35: 3999 | H35: 3319
A36: 45 | B36: 45 | D36: 8359 | E36: 6837 | F36: 4739 | G36: 4139 | H36: 3437
A37: 46 | B37: 46 | D37: 8623 | E37: 7082 | F37: 4897 | G37: 4276 | H37: 3554
A38: 47 | B38: 47 | D38: 8887 | E38: 7324 | F38: 5060 | G38: 4417 | H38: 3665
A39: 48 | B39: 48 | D39: 9140 | E39: 7452 | F39: 5203 | G39: 4542 | H39: 3730
A40: 49 | B40: 49 | D40: 9394 | E40: 7585 | F40: 5346 | G40: 4666 | H40: 3797
A41: 50 | B41: 50 | D41: 9650 | E41: 7720 | F41: 5492 | G41: 4795 | H41: 3864
A42: 51 | B42: 51 | D42: 9908 | E42: 7851 | F42: 5636 | G42: 4920 | H42: 3931
A43: 52 | B43: 52 | D43: 10162 | E43: 7983 | F43: 5781 | G43: 5044 | H43: 3999
A44: 53 | B44: 53 | D44: 10518 | E44: 8292 | F44: 5994 | G44: 5231 | H44: 4140
A45: 54 | B45: 54 | D45: 10872 | E45: 8600 | F45: 6204 | G45: 5415 | H45: 4283
A46: 55 | B46: 55 | D46: 11227 | E46: 8915 | F46: 6418 | G46: 5604 | H46: 4428
A47: 56 | B47: 56 | D47: 11588 | E47: 9223 | F47: 6632 | G47: 5789 | H47: 4575
A48: 57 | B48: 57 | D48: 11941 | E48: 9527 | F48: 6841 | G48: 5973 | H48: 4721
A49: 58 | B49: 58 | D49: 12571 | E49: 10168 | F49: 7288 | G49: 6378 | H49: 5064
A50: 59 | B50: 59 | D50: 13205 | E50: 10813 | F50: 7733 | G50: 6787 | H50: 5412
A51: 60 | B51: 60 | D51: 13841 | E51: 11454 | F51: 8180 | G51: 7191 | H51: 5761
A52: 61 | B52: 61 | D52: 14602 | E52: 12123 | F52: 8646 | G52: 7618 | H52: 6117
A53: 62 | B53: 62 | D53: 15432 | E53: 12801 | F53: 9114 | G53: 8063 | H53: 6475
A54: 63 | B54: 63 | D54: 16266 | E54: 13526 | F54: 9602 | G54: 8500 | H54: 6837
A55: 64 | B55: 64 | D55: 17147 | E55: 14306 | F55: 10115 | G55: 8950 | H55: 7198
A56: 65 | B56: 65 | D56: 18065 | E56: 15105 | F56: 10789 | G56: 9421 | H56: 7563
A57: 66 | B57: 66 | D57: 19224 | E57: 16025 | F57: 11557 | G57: 10082 | H57: 8016
A58: 67 | B58: 67 | D58: 20756 | E58: 17308 | F58: 12485 | G58: 10860 | H58: 8661
A59: 68 | B59: 68 | D59: 22509 | E59: 18766 | F59: 13542 | G59: 11781 | H59: 9395
A60: 69 | B60: 69 | D60: 24583 | E60: 20492 | F60: 14787 | G60: 12863 | H60: 10262
A61: 70 | B61: 70 | D61: 26941 | E61: 22796 | F61: 16121 | G61: 14173 | H61: 11280
A62: 71 | B62: 71 | D62: 29675 | E62: 25129 | F62: 17857 | G62: 15595 | H62: 12437
A63: 72 | B63: 72 | D63: 32831 | E63: 27781 | F63: 19762 | G63: 17269 | H63: 13760
A64: 73 | B64: 73 | D64: 36443 | E64: 30835 | F64: 21935 | G64: 19174 | H64: 15281
A65: 74 | B65: 74 | D65: 40634 | E65: 34378 | F65: 24459 | G65: 21312 | H65: 17046
A66: 75 | B66: 75 | D66: 45358 | E66: 39953 | F66: 28224 | G66: 24442 | H66: 18920
A67: 76 | B67: 76 | D67: 53605 | E67: 47201 | F67: 32772 | G67: 28259 | H67: 21834
A68: 77 | B68: 77 | D68: 62059 | E68: 54622 | F68: 38271 | G68: 33004 | H68: 25028
A69: 78 | B69: 78 | D69: 72165 | E69: 62373 | F69: 44252 | G69: 38154 | H69: 28669
A70: 79 | B70: 79 | D70: 82474 | E70: 70799 | F70: 51665 | G70: 44550 | H70: 32746
A71: 80+ | B71: 80+ | D71: 94017 | E71: 80916 | F71: 59555 | G71: 51360 | H71: 36966
A72: 1 | B72: 1 Child | D72: 1870 | E72: 1546 | F72: 1091 | G72: 936 | H72: 799
A73: 2 | B73: 2 Children | D73: 3153 | E73: 2285 | F73: 1716 | G73: 1473 | H73: 1267
A74: 3 | B74: 3+ Children | D74: 4619 | E74: 3300 | F74: 2492 | G74: 2146 | H74: 1836
A75: 1 | B75: Rider Comp. Maternidad | D75: 225 | E75: 225 | F75: 225 | G75: 225 | H75: 225
A76: 1 | B76: Transplante de organos | D76: 300 | E76: 300 | F76: 300 | G76: 300 | H76: 300

Sheet Honduras 2 (hidden)
K1: D1 | L1: D2 | M1: D3 | N1: D4 | O1: D5 | P1: D6
B2: REGIÓN | C2: ='INGRESO DE DATOS'!W22 -> Bolivia | E2: FACTOR SEMESTRAL : | G2: 0.53 | I2: NEW BUSINESS DISCUOUNTS | K2: ='INGRESO DE DATOS'!O42 -> 1 | L2: ='INGRESO DE DATOS'!P42 -> 1 | M2: ='INGRESO DE DATOS'!Q42 -> 1 | N2: ='INGRESO DE DATOS'!R42 -> 1 | O2: ='INGRESO DE DATOS'!S42 -> 1 | P2: ='INGRESO DE DATOS'!T42 -> 1
A5: BUPA ALPHA
A6: TARIFAS ANUALES
A8: EDAD | C8: DW1 | D8: DW2 | E8: DW3 | F8: DW4 | G8: DW5 | H8: DW6 | I8: DW7
A9: 18 | B9: 18 | D9: 4223 | E9: 3272 | F9: 2533 | G9: 2187 | H9: 1669
A10: 19 | B10: 19 | D10: 4334 | E10: 3380 | F10: 2606 | G10: 2251 | H10: 1715
A11: 20 | B11: 20 | D11: 4450 | E11: 3477 | F11: 2681 | G11: 2317 | H11: 1764
A12: 21 | B12: 21 | D12: 4569 | E12: 3584 | F12: 2753 | G12: 2377 | H12: 1810
A13: 22 | B13: 22 | D13: 4693 | E13: 3695 | F13: 2832 | G13: 2450 | H13: 1860
A14: 23 | B14: 23 | D14: 4813 | E14: 3812 | F14: 2908 | G14: 2513 | H14: 1910
A15: 24 | B15: 24 | D15: 4933 | E15: 3912 | F15: 2991 | G15: 2583 | H15: 1958
A16: 25 | B16: 25 | D16: 5054 | E16: 4025 | F16: 3063 | G16: 2653 | H16: 2009
A17: 26 | B17: 26 | D17: 5175 | E17: 4136 | F17: 3145 | G17: 2718 | H17: 2057
A18: 27 | B18: 27 | D18: 5300 | E18: 4245 | F18: 3218 | G18: 2787 | H18: 2111
A19: 28 | B19: 28 | D19: 5492 | E19: 4393 | F19: 3272 | G19: 2845 | H19: 2190
A20: 29 | B20: 29 | D20: 5688 | E20: 4538 | F20: 3327 | G20: 2906 | H20: 2267
A21: 30 | B21: 30 | D21: 5882 | E21: 4680 | F21: 3381 | G21: 2960 | H21: 2348
A22: 31 | B22: 31 | D22: 6072 | E22: 4830 | F22: 3428 | G22: 3019 | H22: 2424
A23: 32 | B23: 32 | D23: 6268 | E23: 4976 | F23: 3487 | G23: 3076 | H23: 2509
A24: 33 | B24: 33 | D24: 6398 | E24: 5084 | F24: 3572 | G24: 3138 | H24: 2568
A25: 34 | B25: 34 | D25: 6529 | E25: 5192 | F25: 3657 | G25: 3207 | H25: 2630
A26: 35 | B26: 35 | D26: 6658 | E26: 5301 | F26: 3749 | G26: 3264 | H26: 2692
A27: 36 | B27: 36 | D27: 6788 | E27: 5412 | F27: 3835 | G27: 3329 | H27: 2753
A28: 37 | B28: 37 | D28: 6922 | E28: 5522 | F28: 3916 | G28: 3391 | H28: 2814
A29: 38 | B29: 38 | D29: 7048 | E29: 5642 | F29: 3990 | G29: 3457 | H29: 2868
A30: 39 | B30: 39 | D30: 7179 | E30: 5760 | F30: 4054 | G30: 3521 | H30: 2926
A31: 40 | B31: 40 | D31: 7311 | E31: 5882 | F31: 4122 | G31: 3584 | H31: 2977
A32: 41 | B32: 41 | D32: 7436 | E32: 5996 | F32: 4188 | G32: 3652 | H32: 3038
A33: 42 | B33: 42 | D33: 7567 | E33: 6121 | F33: 4256 | G33: 3716 | H33: 3088
A34: 43 | B34: 43 | D34: 7832 | E34: 6360 | F34: 4417 | G34: 3853 | H34: 3208
A35: 44 | B35: 44 | D35: 8094 | E35: 6598 | F35: 4578 | G35: 3999 | H35: 3319
A36: 45 | B36: 45 | D36: 8359 | E36: 6837 | F36: 4739 | G36: 4139 | H36: 3437
A37: 46 | B37: 46 | D37: 8623 | E37: 7082 | F37: 4897 | G37: 4276 | H37: 3554
A38: 47 | B38: 47 | D38: 8887 | E38: 7324 | F38: 5060 | G38: 4417 | H38: 3665
A39: 48 | B39: 48 | D39: 9140 | E39: 7452 | F39: 5203 | G39: 4542 | H39: 3730
A40: 49 | B40: 49 | D40: 9394 | E40: 7585 | F40: 5346 | G40: 4666 | H40: 3797
A41: 50 | B41: 50 | D41: 9650 | E41: 7720 | F41: 5492 | G41: 4795 | H41: 3864
A42: 51 | B42: 51 | D42: 9908 | E42: 7851 | F42: 5636 | G42: 4920 | H42: 3931
A43: 52 | B43: 52 | D43: 10162 | E43: 7983 | F43: 5781 | G43: 5044 | H43: 3999
A44: 53 | B44: 53 | D44: 10518 | E44: 8292 | F44: 5994 | G44: 5231 | H44: 4140
A45: 54 | B45: 54 | D45: 10872 | E45: 8600 | F45: 6204 | G45: 5415 | H45: 4283
A46: 55 | B46: 55 | D46: 11227 | E46: 8915 | F46: 6418 | G46: 5604 | H46: 4428
A47: 56 | B47: 56 | D47: 11588 | E47: 9223 | F47: 6632 | G47: 5789 | H47: 4575
A48: 57 | B48: 57 | D48: 11941 | E48: 9527 | F48: 6841 | G48: 5973 | H48: 4721
A49: 58 | B49: 58 | D49: 12571 | E49: 10168 | F49: 7288 | G49: 6378 | H49: 5064
A50: 59 | B50: 59 | D50: 13205 | E50: 10813 | F50: 7733 | G50: 6787 | H50: 5412
A51: 60 | B51: 60 | D51: 13841 | E51: 11454 | F51: 8180 | G51: 7191 | H51: 5761
A52: 61 | B52: 61 | D52: 14602 | E52: 12123 | F52: 8646 | G52: 7618 | H52: 6117
A53: 62 | B53: 62 | D53: 15432 | E53: 12801 | F53: 9114 | G53: 8063 | H53: 6475
A54: 63 | B54: 63 | D54: 16266 | E54: 13526 | F54: 9602 | G54: 8500 | H54: 6837
A55: 64 | B55: 64 | D55: 17147 | E55: 14306 | F55: 10115 | G55: 8950 | H55: 7198
A56: 65 | B56: 65 | D56: 18065 | E56: 15105 | F56: 10789 | G56: 9421 | H56: 7563
A57: 66 | B57: 66 | D57: 19224 | E57: 16025 | F57: 11557 | G57: 10082 | H57: 8016
A58: 67 | B58: 67 | D58: 20756 | E58: 17308 | F58: 12485 | G58: 10860 | H58: 8661
A59: 68 | B59: 68 | D59: 22509 | E59: 18766 | F59: 13542 | G59: 11781 | H59: 9395
A60: 69 | B60: 69 | D60: 24583 | E60: 20492 | F60: 14787 | G60: 12863 | H60: 10262
A61: 70 | B61: 70 | D61: 26941 | E61: 22796 | F61: 16121 | G61: 14173 | H61: 11280
A62: 71 | B62: 71 | D62: 29675 | E62: 25129 | F62: 17857 | G62: 15595 | H62: 12437
A63: 72 | B63: 72 | D63: 32831 | E63: 27781 | F63: 19762 | G63: 17269 | H63: 13760
A64: 73 | B64: 73 | D64: 36443 | E64: 30835 | F64: 21935 | G64: 19174 | H64: 15281
A65: 74 | B65: 74 | D65: 40634 | E65: 34378 | F65: 24459 | G65: 21312 | H65: 17046
A66: 75 | B66: 75 | D66: 45358 | E66: 39953 | F66: 28224 | G66: 24442 | H66: 18920
A67: 76 | B67: 76 | D67: 53605 | E67: 47201 | F67: 32772 | G67: 28259 | H67: 21834
A68: 77 | B68: 77 | D68: 62059 | E68: 54622 | F68: 38271 | G68: 33004 | H68: 25028
A69: 78 | B69: 78 | D69: 72165 | E69: 62373 | F69: 44252 | G69: 38154 | H69: 28669
A70: 79 | B70: 79 | D70: 82474 | E70: 70799 | F70: 51665 | G70: 44550 | H70: 32746
A71: 80+ | B71: 80+ | D71: 94017 | E71: 80916 | F71: 59555 | G71: 51360 | H71: 36966
A72: 1 | B72: 1 Child | D72: 1870 | E72: 1546 | F72: 1091 | G72: 936 | H72: 799
A73: 2 | B73: 2 Children | D73: 3153 | E73: 2285 | F73: 1716 | G73: 1473 | H73: 1267
A74: 3 | B74: 3+ Children | D74: 4619 | E74: 3300 | F74: 2492 | G74: 2146 | H74: 1836
A75: 1 | B75: Rider Comp. Maternidad | D75: 225 | E75: 225 | F75: 225 | G75: 225 | H75: 225
A76: 1 | B76: Transplante de organos | D76: 300 | E76: 300 | F76: 300 | G76: 300 | H76: 300

Sheet Nicaragua 4 (hidden)
K1: D1 | L1: D2 | M1: D3 | N1: D4 | O1: D5 | P1: D6
B2: REGIÓN | C2: ='INGRESO DE DATOS'!W22 -> Bolivia | E2: FACTOR SEMESTRAL : | G2: 0.53 | I2: NEW BUSINESS DISCUOUNTS | K2: ='INGRESO DE DATOS'!O42 -> 1 | L2: ='INGRESO DE DATOS'!P42 -> 1 | M2: ='INGRESO DE DATOS'!Q42 -> 1 | N2: ='INGRESO DE DATOS'!R42 -> 1 | O2: ='INGRESO DE DATOS'!S42 -> 1 | P2: ='INGRESO DE DATOS'!T42 -> 1
A5: BUPA ALPHA
A6: TARIFAS ANUALES
A8: EDAD | C8: DW1 | D8: DW2 | E8: DW3 | F8: DW4 | G8: DW5 | H8: DW6 | I8: DW7
A9: 18 | B9: 18 | D9: 4454 | E9: 3450 | F9: 2668 | G9: 2311 | H9: 1759
A10: 19 | B10: 19 | D10: 4575 | E10: 3559 | F10: 2743 | G10: 2377 | H10: 1806
A11: 20 | B11: 20 | D11: 4699 | E11: 3667 | F11: 2824 | G11: 2449 | H11: 1860
A12: 21 | B12: 21 | D12: 4821 | E12: 3785 | F12: 2906 | G12: 2514 | H12: 1910
A13: 22 | B13: 22 | D13: 4951 | E13: 3900 | F13: 2990 | G13: 2587 | H13: 1969
A14: 23 | B14: 23 | D14: 5076 | E14: 4019 | F14: 3067 | G14: 2662 | H14: 2018
A15: 24 | B15: 24 | D15: 5206 | E15: 4133 | F15: 3152 | G15: 2732 | H15: 2076
A16: 25 | B16: 25 | D16: 5338 | E16: 4254 | F16: 3241 | G16: 2802 | H16: 2127
A17: 26 | B17: 26 | D17: 5463 | E17: 4368 | F17: 3320 | G17: 2874 | H17: 2180
A18: 27 | B18: 27 | D18: 5594 | E18: 4488 | F18: 3406 | G18: 2948 | H18: 2234
A19: 28 | B19: 28 | D19: 5801 | E19: 4637 | F19: 3459 | G19: 3007 | H19: 2317
A20: 29 | B20: 29 | D20: 6005 | E20: 4791 | F20: 3518 | G20: 3066 | H20: 2401
A21: 30 | B21: 30 | D21: 6215 | E21: 4940 | F21: 3570 | G21: 3128 | H21: 2485
A22: 31 | B22: 31 | D22: 6415 | E22: 5096 | F22: 3627 | G22: 3195 | H22: 2569
A23: 32 | B23: 32 | D23: 6626 | E23: 5251 | F23: 3682 | G23: 3248 | H23: 2648
A24: 33 | B24: 33 | D24: 6763 | E24: 5362 | F24: 3775 | G24: 3320 | H24: 2714
A25: 34 | B25: 34 | D25: 6897 | E25: 5477 | F25: 3867 | G25: 3386 | H25: 2778
A26: 35 | B26: 35 | D26: 7033 | E26: 5592 | F26: 3957 | G26: 3450 | H26: 2839
A27: 36 | B27: 36 | D27: 7170 | E27: 5701 | F27: 4048 | G27: 3518 | H27: 2905
A28: 37 | B28: 37 | D28: 7303 | E28: 5820 | F28: 4146 | G28: 3584 | H28: 2966
A29: 38 | B29: 38 | D29: 7441 | E29: 5943 | F29: 4213 | G29: 3652 | H29: 3029
A30: 39 | B30: 39 | D30: 7580 | E30: 6076 | F30: 4281 | G30: 3726 | H30: 3085
A31: 40 | B31: 40 | D31: 7711 | E31: 6201 | F31: 4352 | G31: 3788 | H31: 3148
A32: 41 | B32: 41 | D32: 7847 | E32: 6323 | F32: 4421 | G32: 3860 | H32: 3206
A33: 42 | B33: 42 | D33: 7982 | E33: 6454 | F33: 4491 | G33: 3929 | H33: 3265
A34: 43 | B34: 43 | D34: 8263 | E34: 6710 | F34: 4661 | G34: 4074 | H34: 3386
A35: 44 | B35: 44 | D35: 8537 | E35: 6961 | F35: 4825 | G35: 4218 | H35: 3507
A36: 45 | B36: 45 | D36: 8816 | E36: 7217 | F36: 4998 | G36: 4365 | H36: 3627
A37: 46 | B37: 46 | D37: 9096 | E37: 7470 | F37: 5163 | G37: 4506 | H37: 3748
A38: 47 | B38: 47 | D38: 9373 | E38: 7724 | F38: 5337 | G38: 4653 | H38: 3867
A39: 48 | B39: 48 | D39: 9643 | E39: 7866 | F39: 5485 | G39: 4788 | H39: 3980
A40: 49 | B40: 49 | D40: 9911 | E40: 8001 | F40: 5636 | G40: 4915 | H40: 4088
A41: 50 | B41: 50 | D41: 10180 | E41: 8141 | F41: 5786 | G41: 5060 | H41: 4206
A42: 51 | B42: 51 | D42: 10448 | E42: 8276 | F42: 5934 | G42: 5187 | H42: 4318
A43: 52 | B43: 52 | D43: 10716 | E43: 8420 | F43: 6090 | G43: 5319 | H43: 4429
A44: 53 | B44: 53 | D44: 11092 | E44: 8742 | F44: 6318 | G44: 5520 | H44: 4590
A45: 54 | B45: 54 | D45: 11466 | E45: 9071 | F45: 6540 | G45: 5715 | H45: 4759
A46: 55 | B46: 55 | D46: 11839 | E46: 9397 | F46: 6772 | G46: 5913 | H46: 4914
A47: 56 | B47: 56 | D47: 12215 | E47: 9720 | F47: 6992 | G47: 6111 | H47: 5076
A48: 57 | B48: 57 | D48: 12588 | E48: 10045 | F48: 7218 | G48: 6312 | H48: 5241
A49: 58 | B49: 58 | D49: 13259 | E49: 10724 | F49: 7688 | G49: 6734 | H49: 5621
A50: 59 | B50: 59 | D50: 13927 | E50: 11404 | F50: 8153 | G50: 7157 | H50: 5997
A51: 60 | B51: 60 | D51: 14594 | E51: 12081 | F51: 8619 | G51: 7588 | H51: 6376
A52: 61 | B52: 61 | D52: 15406 | E52: 12781 | F52: 9113 | G52: 8035 | H52: 6763
A53: 62 | B53: 62 | D53: 16281 | E53: 13501 | F53: 9610 | G53: 8501 | H53: 7152
A54: 63 | B54: 63 | D54: 17158 | E54: 14265 | F54: 10124 | G54: 8962 | H54: 7549
A55: 64 | B55: 64 | D55: 18094 | E55: 15078 | F55: 10673 | G55: 9441 | H55: 7949
A56: 65 | B56: 65 | D56: 19056 | E56: 15929 | F56: 11381 | G56: 9934 | H56: 8350
A57: 66 | B57: 66 | D57: 20278 | E57: 16900 | F57: 12187 | G57: 10633 | H57: 8859
A58: 67 | B58: 67 | D58: 21904 | E58: 18253 | F58: 13167 | G58: 11455 | H58: 9568
A59: 68 | B59: 68 | D59: 23746 | E59: 19780 | F59: 14277 | G59: 12426 | H59: 10390
A60: 69 | B60: 69 | D60: 25933 | E60: 21600 | F60: 15595 | G60: 13558 | H60: 11346
A61: 70 | B61: 70 | D61: 28422 | E61: 24035 | F61: 17001 | G61: 14941 | H61: 12471
A62: 71 | B62: 71 | D62: 31298 | E62: 26488 | F62: 18824 | G62: 16453 | H62: 13742
A63: 72 | B63: 72 | D63: 34635 | E63: 29292 | F63: 20839 | G63: 18209 | H63: 15211
A64: 73 | B64: 73 | D64: 38442 | E64: 32500 | F64: 23125 | G64: 20216 | H64: 16883
A65: 74 | B65: 74 | D65: 42861 | E65: 36243 | F65: 25792 | G65: 22471 | H65: 18828
A66: 75 | B66: 75 | D66: 47854 | E66: 42120 | F66: 29750 | G66: 25771 | H66: 21011
A67: 76 | B67: 76 | D67: 56549 | E67: 49765 | F67: 34541 | G67: 29797 | H67: 24241
A68: 77 | B68: 77 | D68: 65468 | E68: 57582 | F68: 40342 | G68: 34799 | H68: 27794
A69: 78 | B69: 78 | D69: 76128 | E69: 65758 | F69: 46642 | G69: 40234 | H69: 31838
A70: 79 | B70: 79 | D70: 87003 | E70: 74641 | F70: 54460 | G70: 46977 | H70: 36359
A71: 80+ | B71: 80+ | D71: 99182 | E71: 85303 | F71: 62778 | G71: 54151 | H71: 41050
A72: 1 | B72: 1 Child | D72: 1971 | E72: 1624 | F72: 1148 | G72: 988 | H72: 843
A73: 2 | B73: 2 Children | D73: 3317 | E73: 2430 | F73: 1806 | G73: 1561 | H73: 1341
A74: 3 | B74: 3+ Children | D74: 4867 | E74: 3487 | F74: 2621 | G74: 2258 | H74: 1934
A75: 1 | B75: Rider Comp. Maternidad | D75: 225 | E75: 225 | F75: 225 | G75: 225 | H75: 225
A76: 1 | B76: Transplante de organos | D76: 300 | E76: 300 | F76: 300 | G76: 300 | H76: 300

Sheet Paraguay 6 (hidden)
K1: D1 | L1: D2 | M1: D3 | N1: D4 | O1: D5 | P1: D6
B2: REGIÓN | C2: ='INGRESO DE DATOS'!W22 -> Bolivia | E2: FACTOR SEMESTRAL : | G2: 0.53 | I2: NEW BUSINESS DISCUOUNTS | K2: ='INGRESO DE DATOS'!O42 -> 1 | L2: ='INGRESO DE DATOS'!P42 -> 1 | M2: ='INGRESO DE DATOS'!Q42 -> 1 | N2: ='INGRESO DE DATOS'!R42 -> 1 | O2: ='INGRESO DE DATOS'!S42 -> 1 | P2: ='INGRESO DE DATOS'!T42 -> 1
A5: BUPA ALPHA
A6: TARIFAS ANUALES
A8: EDAD | C8: DW1 | D8: DW2 | E8: DW3 | F8: DW4 | G8: DW5 | H8: DW6 | I8: DW7
A9: 18 | B9: 18 | D9: 3644 | E9: 2822 | F9: 2180 | G9: 1888 | H9: 1441
A10: 19 | B10: 19 | D10: 3739 | E10: 2908 | F10: 2245 | G10: 1940 | H10: 1481
A11: 20 | B11: 20 | D11: 3838 | E11: 2994 | F11: 2308 | G11: 2001 | H11: 1519
A12: 21 | B12: 21 | D12: 3942 | E12: 3088 | F12: 2373 | G12: 2055 | H12: 1562
A13: 22 | B13: 22 | D13: 4044 | E13: 3186 | F13: 2440 | G13: 2112 | H13: 1604
A14: 23 | B14: 23 | D14: 4146 | E14: 3276 | F14: 2512 | G14: 2174 | H14: 1650
A15: 24 | B15: 24 | D15: 4254 | E15: 3372 | F15: 2578 | G15: 2229 | H15: 1693
A16: 25 | B16: 25 | D16: 4352 | E16: 3470 | F16: 2645 | G16: 2291 | H16: 1735
A17: 26 | B17: 26 | D17: 4459 | E17: 3564 | F17: 2715 | G17: 2347 | H17: 1777
A18: 27 | B18: 27 | D18: 4562 | E18: 3656 | F18: 2779 | G18: 2407 | H18: 1820
A19: 28 | B19: 28 | D19: 4729 | E19: 3783 | F19: 2825 | G19: 2458 | H19: 1889
A20: 29 | B20: 29 | D20: 4897 | E20: 3912 | F20: 2870 | G20: 2509 | H20: 1959
A21: 30 | B21: 30 | D21: 5067 | E21: 4034 | F21: 2916 | G21: 2555 | H21: 2029
A22: 31 | B22: 31 | D22: 5235 | E22: 4161 | F22: 2957 | G22: 2604 | H22: 2097
A23: 32 | B23: 32 | D23: 5403 | E23: 4287 | F23: 3003 | G23: 2659 | H23: 2165
A24: 33 | B24: 33 | D24: 5511 | E24: 4382 | F24: 3083 | G24: 2713 | H24: 2218
A25: 34 | B25: 34 | D25: 5628 | E25: 4475 | F25: 3152 | G25: 2760 | H25: 2267
A26: 35 | B26: 35 | D26: 5737 | E26: 4567 | F26: 3232 | G26: 2818 | H26: 2321
A27: 36 | B27: 36 | D27: 5848 | E27: 4661 | F27: 3306 | G27: 2870 | H27: 2372
A28: 37 | B28: 37 | D28: 5967 | E28: 4753 | F28: 3383 | G28: 2928 | H28: 2422
A29: 38 | B29: 38 | D29: 6072 | E29: 4861 | F29: 3437 | G29: 2981 | H29: 2469
A30: 39 | B30: 39 | D30: 6184 | E30: 4965 | F30: 3497 | G30: 3039 | H30: 2522
A31: 40 | B31: 40 | D31: 6299 | E31: 5068 | F31: 3553 | G31: 3097 | H31: 2573
A32: 41 | B32: 41 | D32: 6406 | E32: 5174 | F32: 3612 | G32: 3150 | H32: 2619
A33: 42 | B33: 42 | D33: 6517 | E33: 5279 | F33: 3670 | G33: 3210 | H33: 2666
A34: 43 | B34: 43 | D34: 6747 | E34: 5485 | F34: 3804 | G34: 3330 | H34: 2760
A35: 44 | B35: 44 | D35: 6971 | E35: 5687 | F35: 3943 | G35: 3446 | H35: 2865
A36: 45 | B36: 45 | D36: 7198 | E36: 5895 | F36: 4081 | G36: 3564 | H36: 2961
A37: 46 | B37: 46 | D37: 7429 | E37: 6101 | F37: 4222 | G37: 3681 | H37: 3061
A38: 47 | B38: 47 | D38: 7656 | E38: 6306 | F38: 4353 | G38: 3801 | H38: 3161
A39: 48 | B39: 48 | D39: 7872 | E39: 6419 | F39: 4483 | G39: 3913 | H39: 3215
A40: 49 | B40: 49 | D40: 8092 | E40: 6536 | F40: 4603 | G40: 4026 | H40: 3274
A41: 50 | B41: 50 | D41: 8311 | E41: 6650 | F41: 4728 | G41: 4134 | H41: 3330
A42: 51 | B42: 51 | D42: 8528 | E42: 6764 | F42: 4850 | G42: 4241 | H42: 3384
A43: 52 | B43: 52 | D43: 8744 | E43: 6874 | F43: 4974 | G43: 4349 | H43: 3438
A44: 53 | B44: 53 | D44: 9052 | E44: 7146 | F44: 5158 | G44: 4512 | H44: 3565
A45: 54 | B45: 54 | D45: 9359 | E45: 7407 | F45: 5345 | G45: 4670 | H45: 3694
A46: 55 | B46: 55 | D46: 9668 | E46: 7674 | F46: 5528 | G46: 4833 | H46: 3819
A47: 56 | B47: 56 | D47: 9982 | E47: 7942 | F47: 5710 | G47: 4989 | H47: 3943
A48: 57 | B48: 57 | D48: 10285 | E48: 8210 | F48: 5895 | G48: 5154 | H48: 4074
A49: 58 | B49: 58 | D49: 10826 | E49: 8760 | F49: 6279 | G49: 5500 | H49: 4367
A50: 59 | B50: 59 | D50: 11372 | E50: 9313 | F50: 6660 | G50: 5846 | H50: 4666
A51: 60 | B51: 60 | D51: 11916 | E51: 9864 | F51: 7043 | G51: 6192 | H51: 4972
A52: 61 | B52: 61 | D52: 12570 | E52: 10439 | F52: 7445 | G52: 6561 | H52: 5271
A53: 62 | B53: 62 | D53: 13290 | E53: 11031 | F53: 7852 | G53: 6939 | H53: 5579
A54: 63 | B54: 63 | D54: 14007 | E54: 11652 | F54: 8267 | G54: 7322 | H54: 5893
A55: 64 | B55: 64 | D55: 14764 | E55: 12319 | F55: 8714 | G55: 7712 | H55: 6202
A56: 65 | B56: 65 | D56: 15565 | E56: 13010 | F56: 9296 | G56: 8117 | H56: 6517
A57: 66 | B57: 66 | D57: 16561 | E57: 13802 | F57: 9955 | G57: 8685 | H57: 6908
A58: 67 | B58: 67 | D58: 17885 | E58: 14904 | F58: 10761 | G58: 9355 | H58: 7465
A59: 68 | B59: 68 | D59: 19389 | E59: 16168 | F59: 11663 | G59: 10147 | H59: 8097
A60: 69 | B60: 69 | D60: 21170 | E60: 17648 | F60: 12737 | G60: 11074 | H60: 8837
A61: 70 | B61: 70 | D61: 23210 | E61: 19641 | F61: 13891 | G61: 12202 | H61: 9721
A62: 71 | B62: 71 | D62: 25560 | E62: 21640 | F62: 15384 | G62: 13440 | H62: 10714
A63: 72 | B63: 72 | D63: 28273 | E63: 23930 | F63: 17020 | G63: 14877 | H63: 11858
A64: 73 | B64: 73 | D64: 31394 | E64: 26553 | F64: 18896 | G64: 16513 | H64: 13165
A65: 74 | B65: 74 | D65: 34999 | E65: 29608 | F65: 21072 | G65: 18354 | H65: 14679
A66: 75 | B66: 75 | D66: 39072 | E66: 34408 | F66: 24311 | G66: 21051 | H66: 16302
A67: 76 | B67: 76 | D67: 46180 | E67: 40654 | F67: 28223 | G67: 24332 | H67: 18812
A68: 77 | B68: 77 | D68: 53456 | E68: 47043 | F68: 32962 | G68: 28416 | H68: 21569
A69: 78 | B69: 78 | D69: 62160 | E69: 53720 | F69: 38115 | G69: 32860 | H69: 24702
A70: 79 | B70: 79 | D70: 71036 | E70: 60979 | F70: 44498 | G70: 38363 | H70: 28217
A71: 80+ | B71: 80+ | D71: 80987 | E71: 69691 | F71: 51299 | G71: 44223 | H71: 31851
A72: 1 | B72: 1 Child | D72: 1609 | E72: 1328 | F72: 933 | G72: 811 | H72: 687
A73: 2 | B73: 2 Children | D73: 2708 | E73: 1976 | F73: 1481 | G73: 1276 | H73: 1095
A74: 3 | B74: 3+ Children | D74: 3980 | E74: 2839 | F74: 2142 | G74: 1855 | H74: 1581
A75: 1 | B75: Rider Comp. Maternidad | D75: 225 | E75: 225 | F75: 225 | G75: 225 | H75: 225
A76: 1 | B76: Transplante de organos | D76: 300 | E76: 300 | F76: 300 | G76: 300 | H76: 300

Sheet Peru 4 (hidden)
K1: D1 | L1: D2 | M1: D3 | N1: D4 | O1: D5 | P1: D6
B2: REGIÓN | C2: ='INGRESO DE DATOS'!W22 -> Bolivia | E2: FACTOR SEMESTRAL : | G2: 0.53 | I2: NEW BUSINESS DISCUOUNTS | K2: ='INGRESO DE DATOS'!O42 -> 1 | L2: ='INGRESO DE DATOS'!P42 -> 1 | M2: ='INGRESO DE DATOS'!Q42 -> 1 | N2: ='INGRESO DE DATOS'!R42 -> 1 | O2: ='INGRESO DE DATOS'!S42 -> 1 | P2: ='INGRESO DE DATOS'!T42 -> 1
A5: BUPA ALPHA
A6: TARIFAS ANUALES
A8: EDAD | C8: DW1 | D8: DW2 | E8: DW3 | F8: DW4 | G8: DW5 | H8: DW6 | I8: DW7
A9: 18 | B9: 18 | D9: 4454 | E9: 3450 | F9: 2668 | G9: 2311 | H9: 1759
A10: 19 | B10: 19 | D10: 4575 | E10: 3559 | F10: 2743 | G10: 2377 | H10: 1806
A11: 20 | B11: 20 | D11: 4699 | E11: 3667 | F11: 2824 | G11: 2449 | H11: 1860
A12: 21 | B12: 21 | D12: 4821 | E12: 3785 | F12: 2906 | G12: 2514 | H12: 1910
A13: 22 | B13: 22 | D13: 4951 | E13: 3900 | F13: 2990 | G13: 2587 | H13: 1969
A14: 23 | B14: 23 | D14: 5076 | E14: 4019 | F14: 3067 | G14: 2662 | H14: 2018
A15: 24 | B15: 24 | D15: 5206 | E15: 4133 | F15: 3152 | G15: 2732 | H15: 2076
A16: 25 | B16: 25 | D16: 5338 | E16: 4254 | F16: 3241 | G16: 2802 | H16: 2127
A17: 26 | B17: 26 | D17: 5463 | E17: 4368 | F17: 3320 | G17: 2874 | H17: 2180
A18: 27 | B18: 27 | D18: 5594 | E18: 4488 | F18: 3406 | G18: 2948 | H18: 2234
A19: 28 | B19: 28 | D19: 5801 | E19: 4637 | F19: 3459 | G19: 3007 | H19: 2317
A20: 29 | B20: 29 | D20: 6005 | E20: 4791 | F20: 3518 | G20: 3066 | H20: 2401
A21: 30 | B21: 30 | D21: 6215 | E21: 4940 | F21: 3570 | G21: 3128 | H21: 2485
A22: 31 | B22: 31 | D22: 6415 | E22: 5096 | F22: 3627 | G22: 3195 | H22: 2569
A23: 32 | B23: 32 | D23: 6626 | E23: 5251 | F23: 3682 | G23: 3248 | H23: 2648
A24: 33 | B24: 33 | D24: 6763 | E24: 5362 | F24: 3775 | G24: 3320 | H24: 2714
A25: 34 | B25: 34 | D25: 6897 | E25: 5477 | F25: 3867 | G25: 3386 | H25: 2778
A26: 35 | B26: 35 | D26: 7033 | E26: 5592 | F26: 3957 | G26: 3450 | H26: 2839
A27: 36 | B27: 36 | D27: 7170 | E27: 5701 | F27: 4048 | G27: 3518 | H27: 2905
A28: 37 | B28: 37 | D28: 7303 | E28: 5820 | F28: 4146 | G28: 3584 | H28: 2966
A29: 38 | B29: 38 | D29: 7441 | E29: 5943 | F29: 4213 | G29: 3652 | H29: 3029
A30: 39 | B30: 39 | D30: 7580 | E30: 6076 | F30: 4281 | G30: 3726 | H30: 3085
A31: 40 | B31: 40 | D31: 7711 | E31: 6201 | F31: 4352 | G31: 3788 | H31: 3148
A32: 41 | B32: 41 | D32: 7847 | E32: 6323 | F32: 4421 | G32: 3860 | H32: 3206
A33: 42 | B33: 42 | D33: 7982 | E33: 6454 | F33: 4491 | G33: 3929 | H33: 3265
A34: 43 | B34: 43 | D34: 8263 | E34: 6710 | F34: 4661 | G34: 4074 | H34: 3386
A35: 44 | B35: 44 | D35: 8537 | E35: 6961 | F35: 4825 | G35: 4218 | H35: 3507
A36: 45 | B36: 45 | D36: 8816 | E36: 7217 | F36: 4998 | G36: 4365 | H36: 3627
A37: 46 | B37: 46 | D37: 9096 | E37: 7470 | F37: 5163 | G37: 4506 | H37: 3748
A38: 47 | B38: 47 | D38: 9373 | E38: 7724 | F38: 5337 | G38: 4653 | H38: 3867
A39: 48 | B39: 48 | D39: 9643 | E39: 7866 | F39: 5485 | G39: 4788 | H39: 3980
A40: 49 | B40: 49 | D40: 9911 | E40: 8001 | F40: 5636 | G40: 4915 | H40: 4088
A41: 50 | B41: 50 | D41: 10180 | E41: 8141 | F41: 5786 | G41: 5060 | H41: 4206
A42: 51 | B42: 51 | D42: 10448 | E42: 8276 | F42: 5934 | G42: 5187 | H42: 4318
A43: 52 | B43: 52 | D43: 10716 | E43: 8420 | F43: 6090 | G43: 5319 | H43: 4429
A44: 53 | B44: 53 | D44: 11092 | E44: 8742 | F44: 6318 | G44: 5520 | H44: 4590
A45: 54 | B45: 54 | D45: 11466 | E45: 9071 | F45: 6540 | G45: 5715 | H45: 4759
A46: 55 | B46: 55 | D46: 11839 | E46: 9397 | F46: 6772 | G46: 5913 | H46: 4914
A47: 56 | B47: 56 | D47: 12215 | E47: 9720 | F47: 6992 | G47: 6111 | H47: 5076
A48: 57 | B48: 57 | D48: 12588 | E48: 10045 | F48: 7218 | G48: 6312 | H48: 5241
A49: 58 | B49: 58 | D49: 13259 | E49: 10724 | F49: 7688 | G49: 6734 | H49: 5621
A50: 59 | B50: 59 | D50: 13927 | E50: 11404 | F50: 8153 | G50: 7157 | H50: 5997
A51: 60 | B51: 60 | D51: 14594 | E51: 12081 | F51: 8619 | G51: 7588 | H51: 6376
A52: 61 | B52: 61 | D52: 15406 | E52: 12781 | F52: 9113 | G52: 8035 | H52: 6763
A53: 62 | B53: 62 | D53: 16281 | E53: 13501 | F53: 9610 | G53: 8501 | H53: 7152
A54: 63 | B54: 63 | D54: 17158 | E54: 14265 | F54: 10124 | G54: 8962 | H54: 7549
A55: 64 | B55: 64 | D55: 18094 | E55: 15078 | F55: 10673 | G55: 9441 | H55: 7949
A56: 65 | B56: 65 | D56: 19056 | E56: 15929 | F56: 11381 | G56: 9934 | H56: 8350
A57: 66 | B57: 66 | D57: 20278 | E57: 16900 | F57: 12187 | G57: 10633 | H57: 8859
A58: 67 | B58: 67 | D58: 21904 | E58: 18253 | F58: 13167 | G58: 11455 | H58: 9568
A59: 68 | B59: 68 | D59: 23746 | E59: 19780 | F59: 14277 | G59: 12426 | H59: 10390
A60: 69 | B60: 69 | D60: 25933 | E60: 21600 | F60: 15595 | G60: 13558 | H60: 11346
A61: 70 | B61: 70 | D61: 28422 | E61: 24035 | F61: 17001 | G61: 14941 | H61: 12471
A62: 71 | B62: 71 | D62: 31298 | E62: 26488 | F62: 18824 | G62: 16453 | H62: 13742
A63: 72 | B63: 72 | D63: 34635 | E63: 29292 | F63: 20839 | G63: 18209 | H63: 15211
A64: 73 | B64: 73 | D64: 38442 | E64: 32500 | F64: 23125 | G64: 20216 | H64: 16883
A65: 74 | B65: 74 | D65: 42861 | E65: 36243 | F65: 25792 | G65: 22471 | H65: 18828
A66: 75 | B66: 75 | D66: 47854 | E66: 42120 | F66: 29750 | G66: 25771 | H66: 21011
A67: 76 | B67: 76 | D67: 56549 | E67: 49765 | F67: 34541 | G67: 29797 | H67: 24241
A68: 77 | B68: 77 | D68: 65468 | E68: 57582 | F68: 40342 | G68: 34799 | H68: 27794
A69: 78 | B69: 78 | D69: 76128 | E69: 65758 | F69: 46642 | G69: 40234 | H69: 31838
A70: 79 | B70: 79 | D70: 87003 | E70: 74641 | F70: 54460 | G70: 46977 | H70: 36359
A71: 80+ | B71: 80+ | D71: 99182 | E71: 85303 | F71: 62778 | G71: 54151 | H71: 41050
A72: 1 | B72: 1 Child | D72: 1971 | E72: 1624 | F72: 1148 | G72: 988 | H72: 843
A73: 2 | B73: 2 Children | D73: 3317 | E73: 2430 | F73: 1806 | G73: 1561 | H73: 1341
A74: 3 | B74: 3+ Children | D74: 4867 | E74: 3487 | F74: 2621 | G74: 2258 | H74: 1934
A75: 1 | B75: Rider Comp. Maternidad | D75: 225 | E75: 225 | F75: 225 | G75: 225 | H75: 225
A76: 1 | B76: Transplante de organos | D76: 300 | E76: 300 | F76: 300 | G76: 300 | H76: 300

Sheet Surinam 4 (hidden)
K1: D1 | L1: D2 | M1: D3 | N1: D4 | O1: D5 | P1: D6
B2: REGIÓN | C2: ='INGRESO DE DATOS'!W22 -> Bolivia | E2: FACTOR SEMESTRAL : | G2: 0.53 | I2: NEW BUSINESS DISCUOUNTS | K2: ='INGRESO DE DATOS'!O42 -> 1 | L2: ='INGRESO DE DATOS'!P42 -> 1 | M2: ='INGRESO DE DATOS'!Q42 -> 1 | N2: ='INGRESO DE DATOS'!R42 -> 1 | O2: ='INGRESO DE DATOS'!S42 -> 1 | P2: ='INGRESO DE DATOS'!T42 -> 1
A5: BUPA ALPHA
A6: TARIFAS ANUALES
A8: EDAD | C8: DW1 | D8: DW2 | E8: DW3 | F8: DW4 | G8: DW5 | H8: DW6 | I8: DW7
A9: 18 | B9: 18 | D9: 4454 | E9: 3450 | F9: 2668 | G9: 2311 | H9: 1759
A10: 19 | B10: 19 | D10: 4575 | E10: 3559 | F10: 2743 | G10: 2377 | H10: 1806
A11: 20 | B11: 20 | D11: 4699 | E11: 3667 | F11: 2824 | G11: 2449 | H11: 1860
A12: 21 | B12: 21 | D12: 4821 | E12: 3785 | F12: 2906 | G12: 2514 | H12: 1910
A13: 22 | B13: 22 | D13: 4951 | E13: 3900 | F13: 2990 | G13: 2587 | H13: 1969
A14: 23 | B14: 23 | D14: 5076 | E14: 4019 | F14: 3067 | G14: 2662 | H14: 2018
A15: 24 | B15: 24 | D15: 5206 | E15: 4133 | F15: 3152 | G15: 2732 | H15: 2076
A16: 25 | B16: 25 | D16: 5338 | E16: 4254 | F16: 3241 | G16: 2802 | H16: 2127
A17: 26 | B17: 26 | D17: 5463 | E17: 4368 | F17: 3320 | G17: 2874 | H17: 2180
A18: 27 | B18: 27 | D18: 5594 | E18: 4488 | F18: 3406 | G18: 2948 | H18: 2234
A19: 28 | B19: 28 | D19: 5801 | E19: 4637 | F19: 3459 | G19: 3007 | H19: 2317
A20: 29 | B20: 29 | D20: 6005 | E20: 4791 | F20: 3518 | G20: 3066 | H20: 2401
A21: 30 | B21: 30 | D21: 6215 | E21: 4940 | F21: 3570 | G21: 3128 | H21: 2485
A22: 31 | B22: 31 | D22: 6415 | E22: 5096 | F22: 3627 | G22: 3195 | H22: 2569
A23: 32 | B23: 32 | D23: 6626 | E23: 5251 | F23: 3682 | G23: 3248 | H23: 2648
A24: 33 | B24: 33 | D24: 6763 | E24: 5362 | F24: 3775 | G24: 3320 | H24: 2714
A25: 34 | B25: 34 | D25: 6897 | E25: 5477 | F25: 3867 | G25: 3386 | H25: 2778
A26: 35 | B26: 35 | D26: 7033 | E26: 5592 | F26: 3957 | G26: 3450 | H26: 2839
A27: 36 | B27: 36 | D27: 7170 | E27: 5701 | F27: 4048 | G27: 3518 | H27: 2905
A28: 37 | B28: 37 | D28: 7303 | E28: 5820 | F28: 4146 | G28: 3584 | H28: 2966
A29: 38 | B29: 38 | D29: 7441 | E29: 5943 | F29: 4213 | G29: 3652 | H29: 3029
A30: 39 | B30: 39 | D30: 7580 | E30: 6076 | F30: 4281 | G30: 3726 | H30: 3085
A31: 40 | B31: 40 | D31: 7711 | E31: 6201 | F31: 4352 | G31: 3788 | H31: 3148
A32: 41 | B32: 41 | D32: 7847 | E32: 6323 | F32: 4421 | G32: 3860 | H32: 3206
A33: 42 | B33: 42 | D33: 7982 | E33: 6454 | F33: 4491 | G33: 3929 | H33: 3265
A34: 43 | B34: 43 | D34: 8263 | E34: 6710 | F34: 4661 | G34: 4074 | H34: 3386
A35: 44 | B35: 44 | D35: 8537 | E35: 6961 | F35: 4825 | G35: 4218 | H35: 3507
A36: 45 | B36: 45 | D36: 8816 | E36: 7217 | F36: 4998 | G36: 4365 | H36: 3627
A37: 46 | B37: 46 | D37: 9096 | E37: 7470 | F37: 5163 | G37: 4506 | H37: 3748
A38: 47 | B38: 47 | D38: 9373 | E38: 7724 | F38: 5337 | G38: 4653 | H38: 3867
A39: 48 | B39: 48 | D39: 9643 | E39: 7866 | F39: 5485 | G39: 4788 | H39: 3980
A40: 49 | B40: 49 | D40: 9911 | E40: 8001 | F40: 5636 | G40: 4915 | H40: 4088
A41: 50 | B41: 50 | D41: 10180 | E41: 8141 | F41: 5786 | G41: 5060 | H41: 4206
A42: 51 | B42: 51 | D42: 10448 | E42: 8276 | F42: 5934 | G42: 5187 | H42: 4318
A43: 52 | B43: 52 | D43: 10716 | E43: 8420 | F43: 6090 | G43: 5319 | H43: 4429
A44: 53 | B44: 53 | D44: 11092 | E44: 8742 | F44: 6318 | G44: 5520 | H44: 4590
A45: 54 | B45: 54 | D45: 11466 | E45: 9071 | F45: 6540 | G45: 5715 | H45: 4759
A46: 55 | B46: 55 | D46: 11839 | E46: 9397 | F46: 6772 | G46: 5913 | H46: 4914
A47: 56 | B47: 56 | D47: 12215 | E47: 9720 | F47: 6992 | G47: 6111 | H47: 5076
A48: 57 | B48: 57 | D48: 12588 | E48: 10045 | F48: 7218 | G48: 6312 | H48: 5241
A49: 58 | B49: 58 | D49: 13259 | E49: 10724 | F49: 7688 | G49: 6734 | H49: 5621
A50: 59 | B50: 59 | D50: 13927 | E50: 11404 | F50: 8153 | G50: 7157 | H50: 5997
A51: 60 | B51: 60 | D51: 14594 | E51: 12081 | F51: 8619 | G51: 7588 | H51: 6376
A52: 61 | B52: 61 | D52: 15406 | E52: 12781 | F52: 9113 | G52: 8035 | H52: 6763
A53: 62 | B53: 62 | D53: 16281 | E53: 13501 | F53: 9610 | G53: 8501 | H53: 7152
A54: 63 | B54: 63 | D54: 17158 | E54: 14265 | F54: 10124 | G54: 8962 | H54: 7549
A55: 64 | B55: 64 | D55: 18094 | E55: 15078 | F55: 10673 | G55: 9441 | H55: 7949
A56: 65 | B56: 65 | D56: 19056 | E56: 15929 | F56: 11381 | G56: 9934 | H56: 8350
A57: 66 | B57: 66 | D57: 20278 | E57: 16900 | F57: 12187 | G57: 10633 | H57: 8859
A58: 67 | B58: 67 | D58: 21904 | E58: 18253 | F58: 13167 | G58: 11455 | H58: 9568
A59: 68 | B59: 68 | D59: 23746 | E59: 19780 | F59: 14277 | G59: 12426 | H59: 10390
A60: 69 | B60: 69 | D60: 25933 | E60: 21600 | F60: 15595 | G60: 13558 | H60: 11346
A61: 70 | B61: 70 | D61: 28422 | E61: 24035 | F61: 17001 | G61: 14941 | H61: 12471
A62: 71 | B62: 71 | D62: 31298 | E62: 26488 | F62: 18824 | G62: 16453 | H62: 13742
A63: 72 | B63: 72 | D63: 34635 | E63: 29292 | F63: 20839 | G63: 18209 | H63: 15211
A64: 73 | B64: 73 | D64: 38442 | E64: 32500 | F64: 23125 | G64: 20216 | H64: 16883
A65: 74 | B65: 74 | D65: 42861 | E65: 36243 | F65: 25792 | G65: 22471 | H65: 18828
A66: 75 | B66: 75 | D66: 47854 | E66: 42120 | F66: 29750 | G66: 25771 | H66: 21011
A67: 76 | B67: 76 | D67: 56549 | E67: 49765 | F67: 34541 | G67: 29797 | H67: 24241
A68: 77 | B68: 77 | D68: 65468 | E68: 57582 | F68: 40342 | G68: 34799 | H68: 27794
A69: 78 | B69: 78 | D69: 76128 | E69: 65758 | F69: 46642 | G69: 40234 | H69: 31838
A70: 79 | B70: 79 | D70: 87003 | E70: 74641 | F70: 54460 | G70: 46977 | H70: 36359
A71: 80+ | B71: 80+ | D71: 99182 | E71: 85303 | F71: 62778 | G71: 54151 | H71: 41050
A72: 1 | B72: 1 Child | D72: 1971 | E72: 1624 | F72: 1148 | G72: 988 | H72: 843
A73: 2 | B73: 2 Children | D73: 3317 | E73: 2430 | F73: 1806 | G73: 1561 | H73: 1341
A74: 3 | B74: 3+ Children | D74: 4867 | E74: 3487 | F74: 2621 | G74: 2258 | H74: 1934
A75: 1 | B75: Rider Comp. Maternidad | D75: 225 | E75: 225 | F75: 225 | G75: 225 | H75: 225
A76: 1 | B76: Transplante de organos | D76: 300 | E76: 300 | F76: 300 | G76: 300 | H76: 300

Sheet Uruguay 4 (hidden)
K1: D1 | L1: D2 | M1: D3 | N1: D4 | O1: D5 | P1: D6
B2: REGIÓN | C2: ='INGRESO DE DATOS'!W22 -> Bolivia | E2: FACTOR SEMESTRAL : | G2: 0.53 | I2: NEW BUSINESS DISCUOUNTS | K2: ='INGRESO DE DATOS'!O42 -> 1 | L2: ='INGRESO DE DATOS'!P42 -> 1 | M2: ='INGRESO DE DATOS'!Q42 -> 1 | N2: ='INGRESO DE DATOS'!R42 -> 1 | O2: ='INGRESO DE DATOS'!S42 -> 1 | P2: ='INGRESO DE DATOS'!T42 -> 1
A5: BUPA ALPHA
A6: TARIFAS ANUALES
A8: EDAD | C8: DW1 | D8: DW2 | E8: DW3 | F8: DW4 | G8: DW5 | H8: DW6 | I8: DW7
A9: 18 | B9: 18 | D9: 4454 | E9: 3450 | F9: 2668 | G9: 2311 | H9: 1759
A10: 19 | B10: 19 | D10: 4575 | E10: 3559 | F10: 2743 | G10: 2377 | H10: 1806
A11: 20 | B11: 20 | D11: 4699 | E11: 3667 | F11: 2824 | G11: 2449 | H11: 1860
A12: 21 | B12: 21 | D12: 4821 | E12: 3785 | F12: 2906 | G12: 2514 | H12: 1910
A13: 22 | B13: 22 | D13: 4951 | E13: 3900 | F13: 2990 | G13: 2587 | H13: 1969
A14: 23 | B14: 23 | D14: 5076 | E14: 4019 | F14: 3067 | G14: 2662 | H14: 2018
A15: 24 | B15: 24 | D15: 5206 | E15: 4133 | F15: 3152 | G15: 2732 | H15: 2076
A16: 25 | B16: 25 | D16: 5338 | E16: 4254 | F16: 3241 | G16: 2802 | H16: 2127
A17: 26 | B17: 26 | D17: 5463 | E17: 4368 | F17: 3320 | G17: 2874 | H17: 2180
A18: 27 | B18: 27 | D18: 5594 | E18: 4488 | F18: 3406 | G18: 2948 | H18: 2234
A19: 28 | B19: 28 | D19: 5801 | E19: 4637 | F19: 3459 | G19: 3007 | H19: 2317
A20: 29 | B20: 29 | D20: 6005 | E20: 4791 | F20: 3518 | G20: 3066 | H20: 2401
A21: 30 | B21: 30 | D21: 6215 | E21: 4940 | F21: 3570 | G21: 3128 | H21: 2485
A22: 31 | B22: 31 | D22: 6415 | E22: 5096 | F22: 3627 | G22: 3195 | H22: 2569
A23: 32 | B23: 32 | D23: 6626 | E23: 5251 | F23: 3682 | G23: 3248 | H23: 2648
A24: 33 | B24: 33 | D24: 6763 | E24: 5362 | F24: 3775 | G24: 3320 | H24: 2714
A25: 34 | B25: 34 | D25: 6897 | E25: 5477 | F25: 3867 | G25: 3386 | H25: 2778
A26: 35 | B26: 35 | D26: 7033 | E26: 5592 | F26: 3957 | G26: 3450 | H26: 2839
A27: 36 | B27: 36 | D27: 7170 | E27: 5701 | F27: 4048 | G27: 3518 | H27: 2905
A28: 37 | B28: 37 | D28: 7303 | E28: 5820 | F28: 4146 | G28: 3584 | H28: 2966
A29: 38 | B29: 38 | D29: 7441 | E29: 5943 | F29: 4213 | G29: 3652 | H29: 3029
A30: 39 | B30: 39 | D30: 7580 | E30: 6076 | F30: 4281 | G30: 3726 | H30: 3085
A31: 40 | B31: 40 | D31: 7711 | E31: 6201 | F31: 4352 | G31: 3788 | H31: 3148
A32: 41 | B32: 41 | D32: 7847 | E32: 6323 | F32: 4421 | G32: 3860 | H32: 3206
A33: 42 | B33: 42 | D33: 7982 | E33: 6454 | F33: 4491 | G33: 3929 | H33: 3265
A34: 43 | B34: 43 | D34: 8263 | E34: 6710 | F34: 4661 | G34: 4074 | H34: 3386
A35: 44 | B35: 44 | D35: 8537 | E35: 6961 | F35: 4825 | G35: 4218 | H35: 3507
A36: 45 | B36: 45 | D36: 8816 | E36: 7217 | F36: 4998 | G36: 4365 | H36: 3627
A37: 46 | B37: 46 | D37: 9096 | E37: 7470 | F37: 5163 | G37: 4506 | H37: 3748
A38: 47 | B38: 47 | D38: 9373 | E38: 7724 | F38: 5337 | G38: 4653 | H38: 3867
A39: 48 | B39: 48 | D39: 9643 | E39: 7866 | F39: 5485 | G39: 4788 | H39: 3980
A40: 49 | B40: 49 | D40: 9911 | E40: 8001 | F40: 5636 | G40: 4915 | H40: 4088
A41: 50 | B41: 50 | D41: 10180 | E41: 8141 | F41: 5786 | G41: 5060 | H41: 4206
A42: 51 | B42: 51 | D42: 10448 | E42: 8276 | F42: 5934 | G42: 5187 | H42: 4318
A43: 52 | B43: 52 | D43: 10716 | E43: 8420 | F43: 6090 | G43: 5319 | H43: 4429
A44: 53 | B44: 53 | D44: 11092 | E44: 8742 | F44: 6318 | G44: 5520 | H44: 4590
A45: 54 | B45: 54 | D45: 11466 | E45: 9071 | F45: 6540 | G45: 5715 | H45: 4759
A46: 55 | B46: 55 | D46: 11839 | E46: 9397 | F46: 6772 | G46: 5913 | H46: 4914
A47: 56 | B47: 56 | D47: 12215 | E47: 9720 | F47: 6992 | G47: 6111 | H47: 5076
A48: 57 | B48: 57 | D48: 12588 | E48: 10045 | F48: 7218 | G48: 6312 | H48: 5241
A49: 58 | B49: 58 | D49: 13259 | E49: 10724 | F49: 7688 | G49: 6734 | H49: 5621
A50: 59 | B50: 59 | D50: 13927 | E50: 11404 | F50: 8153 | G50: 7157 | H50: 5997
A51: 60 | B51: 60 | D51: 14594 | E51: 12081 | F51: 8619 | G51: 7588 | H51: 6376
A52: 61 | B52: 61 | D52: 15406 | E52: 12781 | F52: 9113 | G52: 8035 | H52: 6763
A53: 62 | B53: 62 | D53: 16281 | E53: 13501 | F53: 9610 | G53: 8501 | H53: 7152
A54: 63 | B54: 63 | D54: 17158 | E54: 14265 | F54: 10124 | G54: 8962 | H54: 7549
A55: 64 | B55: 64 | D55: 18094 | E55: 15078 | F55: 10673 | G55: 9441 | H55: 7949
A56: 65 | B56: 65 | D56: 19056 | E56: 15929 | F56: 11381 | G56: 9934 | H56: 8350
A57: 66 | B57: 66 | D57: 20278 | E57: 16900 | F57: 12187 | G57: 10633 | H57: 8859
A58: 67 | B58: 67 | D58: 21904 | E58: 18253 | F58: 13167 | G58: 11455 | H58: 9568
A59: 68 | B59: 68 | D59: 23746 | E59: 19780 | F59: 14277 | G59: 12426 | H59: 10390
A60: 69 | B60: 69 | D60: 25933 | E60: 21600 | F60: 15595 | G60: 13558 | H60: 11346
A61: 70 | B61: 70 | D61: 28422 | E61: 24035 | F61: 17001 | G61: 14941 | H61: 12471
A62: 71 | B62: 71 | D62: 31298 | E62: 26488 | F62: 18824 | G62: 16453 | H62: 13742
A63: 72 | B63: 72 | D63: 34635 | E63: 29292 | F63: 20839 | G63: 18209 | H63: 15211
A64: 73 | B64: 73 | D64: 38442 | E64: 32500 | F64: 23125 | G64: 20216 | H64: 16883
A65: 74 | B65: 74 | D65: 42861 | E65: 36243 | F65: 25792 | G65: 22471 | H65: 18828
A66: 75 | B66: 75 | D66: 47854 | E66: 42120 | F66: 29750 | G66: 25771 | H66: 21011
A67: 76 | B67: 76 | D67: 56549 | E67: 49765 | F67: 34541 | G67: 29797 | H67: 24241
A68: 77 | B68: 77 | D68: 65468 | E68: 57582 | F68: 40342 | G68: 34799 | H68: 27794
A69: 78 | B69: 78 | D69: 76128 | E69: 65758 | F69: 46642 | G69: 40234 | H69: 31838
A70: 79 | B70: 79 | D70: 87003 | E70: 74641 | F70: 54460 | G70: 46977 | H70: 36359
A71: 80+ | B71: 80+ | D71: 99182 | E71: 85303 | F71: 62778 | G71: 54151 | H71: 41050
A72: 1 | B72: 1 Child | D72: 1971 | E72: 1624 | F72: 1148 | G72: 988 | H72: 843
A73: 2 | B73: 2 Children | D73: 3317 | E73: 2430 | F73: 1806 | G73: 1561 | H73: 1341
A74: 3 | B74: 3+ Children | D74: 4867 | E74: 3487 | F74: 2621 | G74: 2258 | H74: 1934
A75: 1 | B75: Rider Comp. Maternidad | D75: 225 | E75: 225 | F75: 225 | G75: 225 | H75: 225
A76: 1 | B76: Transplante de organos | D76: 300 | E76: 300 | F76: 300 | G76: 300 | H76: 300

Sheet Venezuela 5 (hidden)
K1: D1 | L1: D2 | M1: D3 | N1: D4 | O1: D5 | P1: D6
B2: REGIÓN | C2: ='INGRESO DE DATOS'!W22 -> Bolivia | E2: FACTOR SEMESTRAL : | G2: 0.53 | I2: NEW BUSINESS DISCUOUNTS | K2: ='INGRESO DE DATOS'!O42 -> 1 | L2: ='INGRESO DE DATOS'!P42 -> 1 | M2: ='INGRESO DE DATOS'!Q42 -> 1 | N2: ='INGRESO DE DATOS'!R42 -> 1 | O2: ='INGRESO DE DATOS'!S42 -> 1 | P2: ='INGRESO DE DATOS'!T42 -> 1
A5: BUPA ALPHA
A6: TARIFAS ANUALES
A8: EDAD | C8: DW1 | D8: DW2 | E8: DW3 | F8: DW4 | G8: DW5 | H8: DW6 | I8: DW7
A9: 18 | B9: 18 | D9: 2557 | E9: 1984 | F9: 1535 | G9: 1330 | H9: 1016
A10: 19 | B10: 19 | D10: 2627 | E10: 2044 | F10: 1582 | G10: 1367 | H10: 1043
A11: 20 | B11: 20 | D11: 2694 | E11: 2106 | F11: 1624 | G11: 1403 | H11: 1072
A12: 21 | B12: 21 | D12: 2767 | E12: 2172 | F12: 1669 | G12: 1445 | H12: 1103
A13: 22 | B13: 22 | D13: 2840 | E13: 2237 | F13: 1716 | G13: 1486 | H13: 1131
A14: 23 | B14: 23 | D14: 2914 | E14: 2303 | F14: 1762 | G14: 1528 | H14: 1163
A15: 24 | B15: 24 | D15: 2989 | E15: 2369 | F15: 1816 | G15: 1565 | H15: 1190
A16: 25 | B16: 25 | D16: 3061 | E16: 2435 | F16: 1859 | G16: 1609 | H16: 1222
A17: 26 | B17: 26 | D17: 3130 | E17: 2504 | F17: 1907 | G17: 1649 | H17: 1250
A18: 27 | B18: 27 | D18: 3206 | E18: 2568 | F18: 1955 | G18: 1693 | H18: 1282
A19: 28 | B19: 28 | D19: 3321 | E19: 2658 | F19: 1988 | G19: 1728 | H19: 1330
A20: 29 | B20: 29 | D20: 3442 | E20: 2743 | F20: 2018 | G20: 1759 | H20: 1377
A21: 30 | B21: 30 | D21: 3559 | E21: 2833 | F21: 2052 | G21: 1795 | H21: 1427
A22: 31 | B22: 31 | D22: 3676 | E22: 2924 | F22: 2083 | G22: 1829 | H22: 1473
A23: 32 | B23: 32 | D23: 3795 | E23: 3009 | F23: 2114 | G23: 1866 | H23: 1524
A24: 33 | B24: 33 | D24: 3875 | E24: 3076 | F24: 2164 | G24: 1906 | H24: 1561
A25: 34 | B25: 34 | D25: 3954 | E25: 3141 | F25: 2220 | G25: 1943 | H25: 1598
A26: 35 | B26: 35 | D26: 4032 | E26: 3208 | F26: 2274 | G26: 1980 | H26: 1629
A27: 36 | B27: 36 | D27: 4112 | E27: 3272 | F27: 2321 | G27: 2016 | H27: 1668
A28: 37 | B28: 37 | D28: 4193 | E28: 3339 | F28: 2375 | G28: 2053 | H28: 1704
A29: 38 | B29: 38 | D29: 4270 | E29: 3409 | F29: 2413 | G29: 2095 | H29: 1738
A30: 39 | B30: 39 | D30: 4348 | E30: 3485 | F30: 2456 | G30: 2136 | H30: 1770
A31: 40 | B31: 40 | D31: 4427 | E31: 3560 | F31: 2496 | G31: 2177 | H31: 1809
A32: 41 | B32: 41 | D32: 4506 | E32: 3632 | F32: 2536 | G32: 2218 | H32: 1841
A33: 42 | B33: 42 | D33: 4579 | E33: 3707 | F33: 2580 | G33: 2252 | H33: 1875
A34: 43 | B34: 43 | D34: 4739 | E34: 3851 | F34: 2674 | G34: 2337 | H34: 1943
A35: 44 | B35: 44 | D35: 4904 | E35: 3996 | F35: 2772 | G35: 2421 | H35: 2015
A36: 45 | B36: 45 | D36: 5062 | E36: 4140 | F36: 2868 | G36: 2504 | H36: 2083
A37: 46 | B37: 46 | D37: 5222 | E37: 4283 | F37: 2965 | G37: 2588 | H37: 2153
A38: 47 | B38: 47 | D38: 5381 | E38: 4428 | F38: 3061 | G38: 2671 | H38: 2225
A39: 48 | B39: 48 | D39: 5531 | E39: 4510 | F39: 3148 | G39: 2747 | H39: 2261
A40: 49 | B40: 49 | D40: 5687 | E40: 4589 | F40: 3234 | G40: 2825 | H40: 2299
A41: 50 | B41: 50 | D41: 5840 | E41: 4666 | F41: 3319 | G41: 2904 | H41: 2337
A42: 51 | B42: 51 | D42: 5992 | E42: 4748 | F42: 3405 | G42: 2980 | H42: 2377
A43: 52 | B43: 52 | D43: 6148 | E43: 4829 | F43: 3494 | G43: 3056 | H43: 2413
A44: 53 | B44: 53 | D44: 6360 | E44: 5015 | F44: 3621 | G44: 3170 | H44: 2504
A45: 54 | B45: 54 | D45: 6577 | E45: 5203 | F45: 3754 | G45: 3282 | H45: 2594
A46: 55 | B46: 55 | D46: 6794 | E46: 5390 | F46: 3885 | G46: 3391 | H46: 2682
A47: 56 | B47: 56 | D47: 7008 | E47: 5578 | F47: 4013 | G47: 3503 | H47: 2772
A48: 57 | B48: 57 | D48: 7229 | E48: 5762 | F48: 4144 | G48: 3618 | H48: 2861
A49: 58 | B49: 58 | D49: 7605 | E49: 6154 | F49: 4411 | G49: 3860 | H49: 3068
A50: 59 | B50: 59 | D50: 7994 | E50: 6538 | F50: 4676 | G50: 4103 | H50: 3274
A51: 60 | B51: 60 | D51: 8370 | E51: 6928 | F51: 4944 | G51: 4349 | H51: 3487
A52: 61 | B52: 61 | D52: 8832 | E52: 7329 | F52: 5228 | G52: 4607 | H52: 3701
A53: 62 | B53: 62 | D53: 9336 | E53: 7743 | F53: 5505 | G53: 4878 | H53: 3918
A54: 63 | B54: 63 | D54: 9836 | E54: 8178 | F54: 5807 | G54: 5140 | H54: 4138
A55: 64 | B55: 64 | D55: 10368 | E55: 8646 | F55: 6113 | G55: 5416 | H55: 4353
A56: 65 | B56: 65 | D56: 10926 | E56: 9133 | F56: 6523 | G56: 5697 | H56: 4578
A57: 66 | B57: 66 | D57: 11633 | E57: 9686 | F57: 6986 | G57: 6098 | H57: 4853
A58: 67 | B58: 67 | D58: 12557 | E58: 10464 | F58: 7550 | G58: 6567 | H58: 5239
A59: 68 | B59: 68 | D59: 13613 | E59: 11344 | F59: 8183 | G59: 7124 | H59: 5686
A60: 69 | B60: 69 | D60: 14868 | E60: 12385 | F60: 8941 | G60: 7773 | H60: 6210
A61: 70 | B61: 70 | D61: 16294 | E61: 13789 | F61: 9746 | G61: 8568 | H61: 6826
A62: 71 | B62: 71 | D62: 17948 | E62: 15185 | F62: 10800 | G62: 9433 | H62: 7519
A63: 72 | B63: 72 | D63: 19855 | E63: 16796 | F63: 11945 | G63: 10444 | H63: 8320
A64: 73 | B64: 73 | D64: 22040 | E64: 18637 | F64: 13259 | G64: 11587 | H64: 9240
A65: 74 | B65: 74 | D65: 24571 | E65: 20778 | F65: 14784 | G65: 12882 | H65: 10307
A66: 75 | B66: 75 | D66: 27433 | E66: 24151 | F66: 17059 | G66: 14781 | H66: 11440
A67: 76 | B67: 76 | D67: 32422 | E67: 28532 | F67: 19804 | G67: 17083 | H67: 13204
A68: 77 | B68: 77 | D68: 41242 | E68: 36278 | F68: 25417 | G68: 21924 | H68: 16636
A69: 78 | B69: 78 | D69: 47959 | E69: 41432 | F69: 29389 | G69: 25346 | H69: 19053
A70: 79 | B70: 79 | D70: 54808 | E70: 47030 | F70: 34312 | G70: 29592 | H70: 21762
A71: 80+ | B71: 80+ | D71: 62481 | E71: 53747 | F71: 39553 | G71: 34118 | H71: 24565
A72: 1 | B72: 1 Child | D72: 1131 | E72: 935 | F72: 660 | G72: 572 | H72: 485
A73: 2 | B73: 2 Children | D73: 1903 | E73: 1389 | F73: 1040 | G73: 899 | H73: 770
A74: 3 | B74: 3+ Children | D74: 2792 | E74: 1995 | F74: 1507 | G74: 1301 | H74: 1112
A75: 1 | B75: Rider Comp. Maternidad | D75: 225 | E75: 225 | F75: 225 | G75: 225 | H75: 225
A76: 1 | B76: Transplante de organos | D76: 300 | E76: 300 | F76: 300 | G76: 300 | H76: 300
